Workbook

Sheet Trading Zone
A1: Designed by: Abhijeet Shewale | S1: Developed by: Pankaj Jain | V1: GoTrade DarkMode P&L Report | AA1: BROKERAGE BREAKDOWN | AJ1: EQUITY HOLDING | AR1: EQUITY INTRADAY | AZ1: FUTURES | BH1: OPTIONS
A2: Sr. no | B2: Status | C2: Date | D2: No.s | E2: Instrument | F2: Short/Long | G2: Qty | H2: Buy | I2: Sell/LTP | J2: SL | K2: Target | L2: Remarks | M2: Expected CRR | N2: Trade info | O2: P/L | P2: Brokerage | Q2: Net P/L | R2: Day's Brokerage | S2: Day's P/L | T2: Reactions | V2: Brokerage Paid Till Now | W2: Current P/L | X2: Funds in Account | Y2: Current Balance | AA2: Turnover | AB2: Brokerage | AC2: STT | AD2: ETC | AE2: GST | AF2: SEBI | AG2: Stamp duty | AH2: Total | AJ2: Brokerage | AK2: STT | AL2: ETC | AM2: GST | AN2: SEBI | AO2: Stamp duty | AP2: Total | AR2: Brokerage | AS2: STT | AT2: ETC | AU2: GST | AV2: SEBI | AW2: Stamp duty | AX2: Total | AZ2: Brokerage | BA2: STT | BB2: ETC | BC2: GST | BD2: SEBI | BE2: Stamp duty | BF2: Total | BH2: Brokerage | BI2: STT | BJ2: ETC | BK2: GST | BL2: SEBI | BM2: Stamp duty | BN2: Total
A3: 1 | B3: Start | C3: 2021-04-08T02:02:45 | D3: 1 | E3: BNF-OPT-CE | F3: Short | G3: 1 | H3: 201 | I3: 300 | J3: 350 | K3: 200 | M3: =IF(OR(J3="",K3=""),"",IF(F3="Long", ((K3-H3)/(H3-J3)), ((I3-K3)/(J3-I3)) )) -> 2 | N3: =IF(OR(I3="",D3="",H3="",G3="",E3="",K3=""),"",IF(F3="Long",IF(I3=K3,"Target Achieved",IF(I3=J3,"SL Hit",IF(I3<J3,"Extended SL Hit",IF(I3>K3,"Target Overachieved",IF(AND(I3>=H3,I3<K3),"Early Profit Exit","Early Loss Exit"))))),IF(H3=K3,"Target Achieved",IF(H3=J3,"SL Hit",IF(H3>J3,"Extended SL Hit",IF(H3<K3,"Target Overachieved",IF(AND(H3<=I3,H3>K3),"Early Profit Exit","Early Loss Exit"))))))) -> Early Profit Exit | O3: =IF(AA3="","",IF(OR(I3="",H3=""),0,G3*(I3-H3))) -> 99 | P3: =IF(AH3="","",AH3) -> 47.53 | Q3: =IF(AA3="","",O3-P3) -> 51.47 | R3: =IF(C3="","",IF(ISNUMBER(SEARCH("Start&End",B3)),SUM(P3:INDEX(P3:P107,MATCH(TRUE,(B3:B107="Start&End"),0))),SUM(P3:INDEX(P3:P107,MATCH(TRUE,(B3:B107="End"),0))))) ->  | S3: =IF(C3="","",IF(ISNUMBER(SEARCH("Start&End",B3)),SUM(Q3:INDEX(Q3:Q107,MATCH(TRUE,(B3:B107="Start&End"),0))),SUM(Q3:INDEX(Q3:Q107,MATCH(TRUE,(B3:B107="End"),0))))) ->  | T3: =IF(ISNUMBER(S3),S3,"") ->  | V3: =SUM(P:P,P2) -> 47.53 | W3: =SUM(Q:Q,Q2) -> 51.47 | X3: =SUM(W7:W502)-SUM(Y7:Y502) -> 15000 | Y3: =X3+W3 -> 15051.47 | AA3: =IF((H3+I3)*G3=0,"",(H3+I3)*G3) -> 501 | AB3: =IF(ISNUMBER(SEARCH("FUT",E3)),AZ3,IF(ISNUMBER(SEARCH("OPT",E3)),BH3,IF(ISNUMBER(SEARCH("HOLD",E3)),AJ3,AR3))) -> 40 | AC3: =IF(ISNUMBER(SEARCH("HOLD",E3)),AK3,IF(ISNUMBER(SEARCH("INTRA",E3)),AS3,IF(ISNUMBER(SEARCH("FUT",E3)),BA3,BI3))) -> 0 | AD3: =IF(ISNUMBER(SEARCH("HOLD",E3)),AL3,IF(ISNUMBER(SEARCH("INTRA",E3)),AT3,IF(ISNUMBER(SEARCH("FUT",E3)),BB3,BJ3))) -> 0.27 | AE3: =IF(ISNUMBER(SEARCH("HOLD",E3)),AM3,IF(ISNUMBER(SEARCH("INTRA",E3)),AU3,IF(ISNUMBER(SEARCH("FUT",E3)),BC3,BK3))) -> 7.25 | AF3: =IF(ISNUMBER(SEARCH("HOLD",E3)),AN3,IF(ISNUMBER(SEARCH("INTRA",E3)),AV3,IF(ISNUMBER(SEARCH("FUT",E3)),BD3,BL3))) -> 0 | AG3: =IF(ISNUMBER(SEARCH("HOLD",E3)),AO3,IF(ISNUMBER(SEARCH("INTRA",E3)),AW3,IF(ISNUMBER(SEARCH("FUT",E3)),BE3,BM3))) -> 0.01 | AH3: =IF(AB3&AC3&AD3&AE3&AF3&AG3="","",SUM(AB3:AG3)) -> 47.53 | AJ3: =IF(AA3="","",0) -> 0 | AK3: =IF(AA3="","",ROUND(AA3*0.001,2)) -> 0.5 | AL3: =IF(AA3="","",ROUND(AA3*0.0000345,2)) -> 0.02 | AM3: =IF(AJ3&AL3="","",ROUND((AJ3+AL3)*0.18,2)) -> 0 | AN3: =IF(AA3="","",ROUND((5/10000000)*AA3,2)) -> 0 | AO3: =IF(G3&H3="","",ROUND(G3*H3*0.00015,2)) -> 0.03 | AP3: =IF(AK3&AL3&AM3&AN3&AO3="","",SUM(AK3:AO3)) -> 0.55 | AR3: =IF(MIN(20,((G3*H3*0.0003)))+MIN(20,((G3*H3*0.0003)))=0,"",MIN(20,((G3*H3*0.0003)))+MIN(20,((G3*H3*0.0003)))) -> 0.1206 | AS3: =IF(I3&G3="","",ROUND(I3*G3*0.00025,0)) -> 0 | AT3: =IF(AA3="","",ROUND(AA3*0.0000345,2)) -> 0.02 | AU3: =IF(AR3&AT3="","",ROUND((AR3+AT3)*0.18,2)) -> 0.03 | AV3: =IF(AA3="","",ROUND((5/10000000)*AA3,2)) -> 0 | AW3: =IF(G3&H3="","",ROUND(G3*H3*0.00003,2)) -> 0.01 | AX3: =IF(AR3&AS3&AT3&AU3&AV3&AW3="","",SUM(AR3:AW3)) -> 0.1806 | AZ3: =IF(MIN(20,((G3*H3*0.0003)))+MIN(20,((G3*H3*0.0003)))=0,"",MIN(20,((G3*H3*0.0003)))+MIN(20,((G3*H3*0.0003)))) -> 0.1206 | BA3: =IF(I3&G3="","",ROUND(I3*G3*0.0001,0)) -> 0 | BB3: =IF(AA3="","",ROUND(AA3*0.00002,2)) -> 0.01 | BC3: =IF(AZ3&BB3="","",ROUND((AZ3+BB3)*0.18,2)) -> 0.02 | BD3: =IF(AA3="","",ROUND((5/10000000)*AA3,2)) -> 0 | BE3: =IF(G3&H3="","",ROUND(G3*H3*0.00002,2)) -> 0 | BF3: =IF(FAZ3&BA3&BB3&BC3&BD3&BE3="","",SUM(AZ3:BE3)) -> 0.1506 | BH3: =IF(AA3="","",40) -> 40 | BI3: =IF(I3&G3="","",ROUND(I3*G3*0.0005,0)) -> 0 | BJ3: =IF(AA3="","",ROUND(AA3*0.00053,2)) -> 0.27 | BK3: =IF(BH3&BJ3="","",ROUND((BH3+BJ3)*0.18,2)) -> 7.25 | BL3: =IF(AA3="","",ROUND((5/10000000)*AA3,2)) -> 0 | BM3: =IF(G3&H3="","",ROUND(G3*H3*0.00003,2)) -> 0.01 | BN3: =IF(BH3&BI3&BJ3&BK3&BL3&BM3="","",SUM(BH3:BM3)) -> 47.53
A4: 2 | M4: =IF(OR(J4="",K4=""),"",IF(F4="Long", ((K4-H4)/(H4-J4)), ((I4-K4)/(J4-I4)) )) ->  | N4: =IF(OR(I4="",D4="",H4="",G4="",E4="",K4=""),"",IF(I4=K4,"Target Achieved",IF(I4=J4,"SL Hit",IF(I4<J4,"Extended SL Hit",IF(I4>K4,"Target Overachieved",IF(AND(I4>=H4,I4<K4),"Early Profit Exit","Early Loss Exit")))))) ->  | O4: =IF(AA4="","",IF(OR(I4="",H4=""),0,G4*(I4-H4))) ->  | P4: =IF(AH4="","",AH4) ->  | Q4: =IF(AA4="","",O4-P4) ->  | R4: =IF(C4="","",IF(ISNUMBER(SEARCH("Start&End",B4)),SUM(P4:INDEX(P4:P108,MATCH(TRUE,(B4:B108="Start&End"),0))),SUM(P4:INDEX(P4:P108,MATCH(TRUE,(B4:B108="End"),0))))) ->  | S4: =IF(C4="","",IF(ISNUMBER(SEARCH("Start&End",B4)),SUM(Q4:INDEX(Q4:Q108,MATCH(TRUE,(B4:B108="Start&End"),0))),SUM(Q4:INDEX(Q4:Q108,MATCH(TRUE,(B4:B108="End"),0))))) ->  | AH4: =IF(AB4&AC4&AD4&AE4&AF4&AG4="","",SUM(AB4:AG4)) ->  | AJ4: =IF(AA4="","",0) ->  | AK4: =IF(AA4="","",ROUND(AA4*0.001,2)) ->  | AL4: =IF(AA4="","",ROUND(AA4*0.0000345,2)) ->  | AM4: =IF(AJ4&AL4="","",ROUND((AJ4+AL4)*0.18,2)) ->  | AN4: =IF(AA4="","",ROUND((5/10000000)*AA4,2)) ->  | AP4: =IF(AK4&AL4&AM4&AN4&AO4="","",SUM(AK4:AO4)) ->  | AT4: =IF(AA4="","",ROUND(AA4*0.0000345,2)) ->  | AU4: =IF(AR4&AT4="","",ROUND((AR4+AT4)*0.18,2)) ->  | AV4: =IF(AA4="","",ROUND((5/10000000)*AA4,2)) ->  | AX4: =IF(AR4&AS4&AT4&AU4&AV4&AW4="","",SUM(AR4:AW4)) ->  | BB4: =IF(AA4="","",ROUND(AA4*0.00002,2)) ->  | BC4: =IF(AZ4&BB4="","",ROUND((AZ4+BB4)*0.18,2)) ->  | BD4: =IF(AA4="","",ROUND((5/10000000)*AA4,2)) ->  | BF4: =IF(FAZ4&BA4&BB4&BC4&BD4&BE4="","",SUM(AZ4:BE4)) ->  | BK4: =IF(BH4&BJ4="","",ROUND((BH4+BJ4)*0.18,2)) ->  | BN4: =IF(BH4&BI4&BJ4&BK4&BL4&BM4="","",SUM(BH4:BM4)) -> 
A5: 3 | R5: =IF(C5="","",IF(ISNUMBER(SEARCH("Start&End",B5)),SUM(P5:INDEX(P5:P109,MATCH(TRUE,(B5:B109="Start&End"),0))),SUM(P5:INDEX(P5:P109,MATCH(TRUE,(B5:B109="End"),0))))) ->  | S5: =IF(C5="","",IF(ISNUMBER(SEARCH("Start&End",B5)),SUM(Q5:INDEX(Q5:Q109,MATCH(TRUE,(B5:B109="Start&End"),0))),SUM(Q5:INDEX(Q5:Q109,MATCH(TRUE,(B5:B109="End"),0))))) ->  | V5: Add your Funds here | X5: Withdraw your Funds here | BF5: =IF(FAX5&BA5&BB5&BC5&BD5&BE5="","",SUM(AZ5:BE5)) -> 
A6: 4 | R6: =IF(C6="","",IF(ISNUMBER(SEARCH("Start&End",B6)),SUM(P6:INDEX(P6:P110,MATCH(TRUE,(B6:B110="Start&End"),0))),SUM(P6:INDEX(P6:P110,MATCH(TRUE,(B6:B110="End"),0))))) ->  | S6: =IF(C6="","",IF(ISNUMBER(SEARCH("Start&End",B6)),SUM(Q6:INDEX(Q6:Q110,MATCH(TRUE,(B6:B110="Start&End"),0))),SUM(Q6:INDEX(Q6:Q110,MATCH(TRUE,(B6:B110="End"),0))))) ->  | V6: Sr.no | W6: Funds added | X6: Sr.no | Y6: Funds Withdrew
A7: 5 | R7: =IF(C7="","",IF(ISNUMBER(SEARCH("Start&End",B7)),SUM(P7:INDEX(P7:P111,MATCH(TRUE,(B7:B111="Start&End"),0))),SUM(P7:INDEX(P7:P111,MATCH(TRUE,(B7:B111="End"),0))))) ->  | S7: =IF(C7="","",IF(ISNUMBER(SEARCH("Start&End",B7)),SUM(Q7:INDEX(Q7:Q111,MATCH(TRUE,(B7:B111="Start&End"),0))),SUM(Q7:INDEX(Q7:Q111,MATCH(TRUE,(B7:B111="End"),0))))) ->  | V7: 1 | W7: 15000 | X7: 1
A8: 6 | R8: =IF(C8="","",IF(ISNUMBER(SEARCH("Start&End",B8)),SUM(P8:INDEX(P8:P112,MATCH(TRUE,(B8:B112="Start&End"),0))),SUM(P8:INDEX(P8:P112,MATCH(TRUE,(B8:B112="End"),0))))) ->  | S8: =IF(C8="","",IF(ISNUMBER(SEARCH("Start&End",B8)),SUM(Q8:INDEX(Q8:Q112,MATCH(TRUE,(B8:B112="Start&End"),0))),SUM(Q8:INDEX(Q8:Q112,MATCH(TRUE,(B8:B112="End"),0))))) -> 
A9: 7 | R9: =IF(C9="","",IF(ISNUMBER(SEARCH("Start&End",B9)),SUM(P9:INDEX(P9:P113,MATCH(TRUE,(B9:B113="Start&End"),0))),SUM(P9:INDEX(P9:P113,MATCH(TRUE,(B9:B113="End"),0))))) ->  | S9: =IF(C9="","",IF(ISNUMBER(SEARCH("Start&End",B9)),SUM(Q9:INDEX(Q9:Q113,MATCH(TRUE,(B9:B113="Start&End"),0))),SUM(Q9:INDEX(Q9:Q113,MATCH(TRUE,(B9:B113="End"),0))))) -> 
A10: 8 | R10: =IF(C10="","",IF(ISNUMBER(SEARCH("Start&End",B10)),SUM(P10:INDEX(P10:P114,MATCH(TRUE,(B10:B114="Start&End"),0))),SUM(P10:INDEX(P10:P114,MATCH(TRUE,(B10:B114="End"),0))))) ->  | S10: =IF(C10="","",IF(ISNUMBER(SEARCH("Start&End",B10)),SUM(Q10:INDEX(Q10:Q114,MATCH(TRUE,(B10:B114="Start&End"),0))),SUM(Q10:INDEX(Q10:Q114,MATCH(TRUE,(B10:B114="End"),0))))) -> 
A11: 9 | R11: =IF(C11="","",IF(ISNUMBER(SEARCH("Start&End",B11)),SUM(P11:INDEX(P11:P115,MATCH(TRUE,(B11:B115="Start&End"),0))),SUM(P11:INDEX(P11:P115,MATCH(TRUE,(B11:B115="End"),0))))) ->  | S11: =IF(C11="","",IF(ISNUMBER(SEARCH("Start&End",B11)),SUM(Q11:INDEX(Q11:Q115,MATCH(TRUE,(B11:B115="Start&End"),0))),SUM(Q11:INDEX(Q11:Q115,MATCH(TRUE,(B11:B115="End"),0))))) ->  | AD11: =IF(ISNUMBER(SEARCH("HOLD",E11)),AL11,IF(ISNUMBER(SEARCH("INTRA",E11)),AT11,IF(ISNUMBER(SEARCH("FUT",E11)),BB11,BJ11))) -> 
A12: 10 | R12: =IF(C12="","",IF(ISNUMBER(SEARCH("Start&End",B12)),SUM(P12:INDEX(P12:P116,MATCH(TRUE,(B12:B116="Start&End"),0))),SUM(P12:INDEX(P12:P116,MATCH(TRUE,(B12:B116="End"),0))))) ->  | S12: =IF(C12="","",IF(ISNUMBER(SEARCH("Start&End",B12)),SUM(Q12:INDEX(Q12:Q116,MATCH(TRUE,(B12:B116="Start&End"),0))),SUM(Q12:INDEX(Q12:Q116,MATCH(TRUE,(B12:B116="End"),0))))) -> 
A13: 11 | R13: =IF(C13="","",IF(ISNUMBER(SEARCH("Start&End",B13)),SUM(P13:INDEX(P13:P117,MATCH(TRUE,(B13:B117="Start&End"),0))),SUM(P13:INDEX(P13:P117,MATCH(TRUE,(B13:B117="End"),0))))) ->  | S13: =IF(C13="","",IF(ISNUMBER(SEARCH("Start&End",B13)),SUM(Q13:INDEX(Q13:Q117,MATCH(TRUE,(B13:B117="Start&End"),0))),SUM(Q13:INDEX(Q13:Q117,MATCH(TRUE,(B13:B117="End"),0))))) -> 
A14: 12 | R14: =IF(C14="","",IF(ISNUMBER(SEARCH("Start&End",B14)),SUM(P14:INDEX(P14:P118,MATCH(TRUE,(B14:B118="Start&End"),0))),SUM(P14:INDEX(P14:P118,MATCH(TRUE,(B14:B118="End"),0))))) ->  | S14: =IF(C14="","",IF(ISNUMBER(SEARCH("Start&End",B14)),SUM(Q14:INDEX(Q14:Q118,MATCH(TRUE,(B14:B118="Start&End"),0))),SUM(Q14:INDEX(Q14:Q118,MATCH(TRUE,(B14:B118="End"),0))))) -> 
A15: 13 | R15: =IF(C15="","",IF(ISNUMBER(SEARCH("Start&End",B15)),SUM(P15:INDEX(P15:P119,MATCH(TRUE,(B15:B119="Start&End"),0))),SUM(P15:INDEX(P15:P119,MATCH(TRUE,(B15:B119="End"),0))))) ->  | S15: =IF(C15="","",IF(ISNUMBER(SEARCH("Start&End",B15)),SUM(Q15:INDEX(Q15:Q119,MATCH(TRUE,(B15:B119="Start&End"),0))),SUM(Q15:INDEX(Q15:Q119,MATCH(TRUE,(B15:B119="End"),0))))) -> 
A16: 14 | R16: =IF(C16="","",IF(ISNUMBER(SEARCH("Start&End",B16)),SUM(P16:INDEX(P16:P120,MATCH(TRUE,(B16:B120="Start&End"),0))),SUM(P16:INDEX(P16:P120,MATCH(TRUE,(B16:B120="End"),0))))) ->  | S16: =IF(C16="","",IF(ISNUMBER(SEARCH("Start&End",B16)),SUM(Q16:INDEX(Q16:Q120,MATCH(TRUE,(B16:B120="Start&End"),0))),SUM(Q16:INDEX(Q16:Q120,MATCH(TRUE,(B16:B120="End"),0))))) -> 
A17: 15 | R17: =IF(C17="","",IF(ISNUMBER(SEARCH("Start&End",B17)),SUM(P17:INDEX(P17:P121,MATCH(TRUE,(B17:B121="Start&End"),0))),SUM(P17:INDEX(P17:P121,MATCH(TRUE,(B17:B121="End"),0))))) ->  | S17: =IF(C17="","",IF(ISNUMBER(SEARCH("Start&End",B17)),SUM(Q17:INDEX(Q17:Q121,MATCH(TRUE,(B17:B121="Start&End"),0))),SUM(Q17:INDEX(Q17:Q121,MATCH(TRUE,(B17:B121="End"),0))))) -> 
A18: 16 | R18: =IF(C18="","",IF(ISNUMBER(SEARCH("Start&End",B18)),SUM(P18:INDEX(P18:P122,MATCH(TRUE,(B18:B122="Start&End"),0))),SUM(P18:INDEX(P18:P122,MATCH(TRUE,(B18:B122="End"),0))))) ->  | S18: =IF(C18="","",IF(ISNUMBER(SEARCH("Start&End",B18)),SUM(Q18:INDEX(Q18:Q122,MATCH(TRUE,(B18:B122="Start&End"),0))),SUM(Q18:INDEX(Q18:Q122,MATCH(TRUE,(B18:B122="End"),0))))) -> 
A19: 17 | R19: =IF(C19="","",IF(ISNUMBER(SEARCH("Start&End",B19)),SUM(P19:INDEX(P19:P123,MATCH(TRUE,(B19:B123="Start&End"),0))),SUM(P19:INDEX(P19:P123,MATCH(TRUE,(B19:B123="End"),0))))) ->  | S19: =IF(C19="","",IF(ISNUMBER(SEARCH("Start&End",B19)),SUM(Q19:INDEX(Q19:Q123,MATCH(TRUE,(B19:B123="Start&End"),0))),SUM(Q19:INDEX(Q19:Q123,MATCH(TRUE,(B19:B123="End"),0))))) -> 
A20: 18 | R20: =IF(C20="","",IF(ISNUMBER(SEARCH("Start&End",B20)),SUM(P20:INDEX(P20:P124,MATCH(TRUE,(B20:B124="Start&End"),0))),SUM(P20:INDEX(P20:P124,MATCH(TRUE,(B20:B124="End"),0))))) ->  | S20: =IF(C20="","",IF(ISNUMBER(SEARCH("Start&End",B20)),SUM(Q20:INDEX(Q20:Q124,MATCH(TRUE,(B20:B124="Start&End"),0))),SUM(Q20:INDEX(Q20:Q124,MATCH(TRUE,(B20:B124="End"),0))))) -> 
A21: 19 | R21: =IF(C21="","",IF(ISNUMBER(SEARCH("Start&End",B21)),SUM(P21:INDEX(P21:P125,MATCH(TRUE,(B21:B125="Start&End"),0))),SUM(P21:INDEX(P21:P125,MATCH(TRUE,(B21:B125="End"),0))))) ->  | S21: =IF(C21="","",IF(ISNUMBER(SEARCH("Start&End",B21)),SUM(Q21:INDEX(Q21:Q125,MATCH(TRUE,(B21:B125="Start&End"),0))),SUM(Q21:INDEX(Q21:Q125,MATCH(TRUE,(B21:B125="End"),0))))) -> 
A22: 20 | R22: =IF(C22="","",IF(ISNUMBER(SEARCH("Start&End",B22)),SUM(P22:INDEX(P22:P126,MATCH(TRUE,(B22:B126="Start&End"),0))),SUM(P22:INDEX(P22:P126,MATCH(TRUE,(B22:B126="End"),0))))) ->  | S22: =IF(C22="","",IF(ISNUMBER(SEARCH("Start&End",B22)),SUM(Q22:INDEX(Q22:Q126,MATCH(TRUE,(B22:B126="Start&End"),0))),SUM(Q22:INDEX(Q22:Q126,MATCH(TRUE,(B22:B126="End"),0))))) -> 
A23: 21 | R23: =IF(C23="","",IF(ISNUMBER(SEARCH("Start&End",B23)),SUM(P23:INDEX(P23:P127,MATCH(TRUE,(B23:B127="Start&End"),0))),SUM(P23:INDEX(P23:P127,MATCH(TRUE,(B23:B127="End"),0))))) ->  | S23: =IF(C23="","",IF(ISNUMBER(SEARCH("Start&End",B23)),SUM(Q23:INDEX(Q23:Q127,MATCH(TRUE,(B23:B127="Start&End"),0))),SUM(Q23:INDEX(Q23:Q127,MATCH(TRUE,(B23:B127="End"),0))))) -> 
A24: 22 | R24: =IF(C24="","",IF(ISNUMBER(SEARCH("Start&End",B24)),SUM(P24:INDEX(P24:P128,MATCH(TRUE,(B24:B128="Start&End"),0))),SUM(P24:INDEX(P24:P128,MATCH(TRUE,(B24:B128="End"),0))))) ->  | S24: =IF(C24="","",IF(ISNUMBER(SEARCH("Start&End",B24)),SUM(Q24:INDEX(Q24:Q128,MATCH(TRUE,(B24:B128="Start&End"),0))),SUM(Q24:INDEX(Q24:Q128,MATCH(TRUE,(B24:B128="End"),0))))) -> 
A25: 23 | R25: =IF(C25="","",IF(ISNUMBER(SEARCH("Start&End",B25)),SUM(P25:INDEX(P25:P129,MATCH(TRUE,(B25:B129="Start&End"),0))),SUM(P25:INDEX(P25:P129,MATCH(TRUE,(B25:B129="End"),0))))) ->  | S25: =IF(C25="","",IF(ISNUMBER(SEARCH("Start&End",B25)),SUM(Q25:INDEX(Q25:Q129,MATCH(TRUE,(B25:B129="Start&End"),0))),SUM(Q25:INDEX(Q25:Q129,MATCH(TRUE,(B25:B129="End"),0))))) -> 
A26: 24 | R26: =IF(C26="","",IF(ISNUMBER(SEARCH("Start&End",B26)),SUM(P26:INDEX(P26:P130,MATCH(TRUE,(B26:B130="Start&End"),0))),SUM(P26:INDEX(P26:P130,MATCH(TRUE,(B26:B130="End"),0))))) ->  | S26: =IF(C26="","",IF(ISNUMBER(SEARCH("Start&End",B26)),SUM(Q26:INDEX(Q26:Q130,MATCH(TRUE,(B26:B130="Start&End"),0))),SUM(Q26:INDEX(Q26:Q130,MATCH(TRUE,(B26:B130="End"),0))))) -> 
A27: 25 | R27: =IF(C27="","",IF(ISNUMBER(SEARCH("Start&End",B27)),SUM(P27:INDEX(P27:P131,MATCH(TRUE,(B27:B131="Start&End"),0))),SUM(P27:INDEX(P27:P131,MATCH(TRUE,(B27:B131="End"),0))))) ->  | S27: =IF(C27="","",IF(ISNUMBER(SEARCH("Start&End",B27)),SUM(Q27:INDEX(Q27:Q131,MATCH(TRUE,(B27:B131="Start&End"),0))),SUM(Q27:INDEX(Q27:Q131,MATCH(TRUE,(B27:B131="End"),0))))) -> 
A28: 26 | R28: =IF(C28="","",IF(ISNUMBER(SEARCH("Start&End",B28)),SUM(P28:INDEX(P28:P132,MATCH(TRUE,(B28:B132="Start&End"),0))),SUM(P28:INDEX(P28:P132,MATCH(TRUE,(B28:B132="End"),0))))) ->  | S28: =IF(C28="","",IF(ISNUMBER(SEARCH("Start&End",B28)),SUM(Q28:INDEX(Q28:Q132,MATCH(TRUE,(B28:B132="Start&End"),0))),SUM(Q28:INDEX(Q28:Q132,MATCH(TRUE,(B28:B132="End"),0))))) -> 
A29: 27 | R29: =IF(C29="","",IF(ISNUMBER(SEARCH("Start&End",B29)),SUM(P29:INDEX(P29:P133,MATCH(TRUE,(B29:B133="Start&End"),0))),SUM(P29:INDEX(P29:P133,MATCH(TRUE,(B29:B133="End"),0))))) ->  | S29: =IF(C29="","",IF(ISNUMBER(SEARCH("Start&End",B29)),SUM(Q29:INDEX(Q29:Q133,MATCH(TRUE,(B29:B133="Start&End"),0))),SUM(Q29:INDEX(Q29:Q133,MATCH(TRUE,(B29:B133="End"),0))))) -> 
A30: 28 | R30: =IF(C30="","",IF(ISNUMBER(SEARCH("Start&End",B30)),SUM(P30:INDEX(P30:P134,MATCH(TRUE,(B30:B134="Start&End"),0))),SUM(P30:INDEX(P30:P134,MATCH(TRUE,(B30:B134="End"),0))))) ->  | S30: =IF(C30="","",IF(ISNUMBER(SEARCH("Start&End",B30)),SUM(Q30:INDEX(Q30:Q134,MATCH(TRUE,(B30:B134="Start&End"),0))),SUM(Q30:INDEX(Q30:Q134,MATCH(TRUE,(B30:B134="End"),0))))) -> 
A31: 29 | R31: =IF(C31="","",IF(ISNUMBER(SEARCH("Start&End",B31)),SUM(P31:INDEX(P31:P135,MATCH(TRUE,(B31:B135="Start&End"),0))),SUM(P31:INDEX(P31:P135,MATCH(TRUE,(B31:B135="End"),0))))) ->  | S31: =IF(C31="","",IF(ISNUMBER(SEARCH("Start&End",B31)),SUM(Q31:INDEX(Q31:Q135,MATCH(TRUE,(B31:B135="Start&End"),0))),SUM(Q31:INDEX(Q31:Q135,MATCH(TRUE,(B31:B135="End"),0))))) -> 
A32: 30 | R32: =IF(C32="","",IF(ISNUMBER(SEARCH("Start&End",B32)),SUM(P32:INDEX(P32:P136,MATCH(TRUE,(B32:B136="Start&End"),0))),SUM(P32:INDEX(P32:P136,MATCH(TRUE,(B32:B136="End"),0))))) ->  | S32: =IF(C32="","",IF(ISNUMBER(SEARCH("Start&End",B32)),SUM(Q32:INDEX(Q32:Q136,MATCH(TRUE,(B32:B136="Start&End"),0))),SUM(Q32:INDEX(Q32:Q136,MATCH(TRUE,(B32:B136="End"),0))))) -> 
A33: 31 | R33: =IF(C33="","",IF(ISNUMBER(SEARCH("Start&End",B33)),SUM(P33:INDEX(P33:P137,MATCH(TRUE,(B33:B137="Start&End"),0))),SUM(P33:INDEX(P33:P137,MATCH(TRUE,(B33:B137="End"),0))))) ->  | S33: =IF(C33="","",IF(ISNUMBER(SEARCH("Start&End",B33)),SUM(Q33:INDEX(Q33:Q137,MATCH(TRUE,(B33:B137="Start&End"),0))),SUM(Q33:INDEX(Q33:Q137,MATCH(TRUE,(B33:B137="End"),0))))) -> 
A34: 32 | R34: =IF(C34="","",IF(ISNUMBER(SEARCH("Start&End",B34)),SUM(P34:INDEX(P34:P138,MATCH(TRUE,(B34:B138="Start&End"),0))),SUM(P34:INDEX(P34:P138,MATCH(TRUE,(B34:B138="End"),0))))) ->  | S34: =IF(C34="","",IF(ISNUMBER(SEARCH("Start&End",B34)),SUM(Q34:INDEX(Q34:Q138,MATCH(TRUE,(B34:B138="Start&End"),0))),SUM(Q34:INDEX(Q34:Q138,MATCH(TRUE,(B34:B138="End"),0))))) -> 
A35: 33 | R35: =IF(C35="","",IF(ISNUMBER(SEARCH("Start&End",B35)),SUM(P35:INDEX(P35:P139,MATCH(TRUE,(B35:B139="Start&End"),0))),SUM(P35:INDEX(P35:P139,MATCH(TRUE,(B35:B139="End"),0))))) ->  | S35: =IF(C35="","",IF(ISNUMBER(SEARCH("Start&End",B35)),SUM(Q35:INDEX(Q35:Q139,MATCH(TRUE,(B35:B139="Start&End"),0))),SUM(Q35:INDEX(Q35:Q139,MATCH(TRUE,(B35:B139="End"),0))))) -> 
A36: 34 | R36: =IF(C36="","",IF(ISNUMBER(SEARCH("Start&End",B36)),SUM(P36:INDEX(P36:P140,MATCH(TRUE,(B36:B140="Start&End"),0))),SUM(P36:INDEX(P36:P140,MATCH(TRUE,(B36:B140="End"),0))))) ->  | S36: =IF(C36="","",IF(ISNUMBER(SEARCH("Start&End",B36)),SUM(Q36:INDEX(Q36:Q140,MATCH(TRUE,(B36:B140="Start&End"),0))),SUM(Q36:INDEX(Q36:Q140,MATCH(TRUE,(B36:B140="End"),0))))) -> 
A37: 35 | R37: =IF(C37="","",IF(ISNUMBER(SEARCH("Start&End",B37)),SUM(P37:INDEX(P37:P141,MATCH(TRUE,(B37:B141="Start&End"),0))),SUM(P37:INDEX(P37:P141,MATCH(TRUE,(B37:B141="End"),0))))) ->  | S37: =IF(C37="","",IF(ISNUMBER(SEARCH("Start&End",B37)),SUM(Q37:INDEX(Q37:Q141,MATCH(TRUE,(B37:B141="Start&End"),0))),SUM(Q37:INDEX(Q37:Q141,MATCH(TRUE,(B37:B141="End"),0))))) -> 
A38: 36 | R38: =IF(C38="","",IF(ISNUMBER(SEARCH("Start&End",B38)),SUM(P38:INDEX(P38:P142,MATCH(TRUE,(B38:B142="Start&End"),0))),SUM(P38:INDEX(P38:P142,MATCH(TRUE,(B38:B142="End"),0))))) ->  | S38: =IF(C38="","",IF(ISNUMBER(SEARCH("Start&End",B38)),SUM(Q38:INDEX(Q38:Q142,MATCH(TRUE,(B38:B142="Start&End"),0))),SUM(Q38:INDEX(Q38:Q142,MATCH(TRUE,(B38:B142="End"),0))))) -> 
A39: 37 | R39: =IF(C39="","",IF(ISNUMBER(SEARCH("Start&End",B39)),SUM(P39:INDEX(P39:P143,MATCH(TRUE,(B39:B143="Start&End"),0))),SUM(P39:INDEX(P39:P143,MATCH(TRUE,(B39:B143="End"),0))))) ->  | S39: =IF(C39="","",IF(ISNUMBER(SEARCH("Start&End",B39)),SUM(Q39:INDEX(Q39:Q143,MATCH(TRUE,(B39:B143="Start&End"),0))),SUM(Q39:INDEX(Q39:Q143,MATCH(TRUE,(B39:B143="End"),0))))) -> 
A40: 38 | R40: =IF(C40="","",IF(ISNUMBER(SEARCH("Start&End",B40)),SUM(P40:INDEX(P40:P144,MATCH(TRUE,(B40:B144="Start&End"),0))),SUM(P40:INDEX(P40:P144,MATCH(TRUE,(B40:B144="End"),0))))) ->  | S40: =IF(C40="","",IF(ISNUMBER(SEARCH("Start&End",B40)),SUM(Q40:INDEX(Q40:Q144,MATCH(TRUE,(B40:B144="Start&End"),0))),SUM(Q40:INDEX(Q40:Q144,MATCH(TRUE,(B40:B144="End"),0))))) -> 
A41: 39 | R41: =IF(C41="","",IF(ISNUMBER(SEARCH("Start&End",B41)),SUM(P41:INDEX(P41:P145,MATCH(TRUE,(B41:B145="Start&End"),0))),SUM(P41:INDEX(P41:P145,MATCH(TRUE,(B41:B145="End"),0))))) ->  | S41: =IF(C41="","",IF(ISNUMBER(SEARCH("Start&End",B41)),SUM(Q41:INDEX(Q41:Q145,MATCH(TRUE,(B41:B145="Start&End"),0))),SUM(Q41:INDEX(Q41:Q145,MATCH(TRUE,(B41:B145="End"),0))))) -> 
A42: 40 | R42: =IF(C42="","",IF(ISNUMBER(SEARCH("Start&End",B42)),SUM(P42:INDEX(P42:P146,MATCH(TRUE,(B42:B146="Start&End"),0))),SUM(P42:INDEX(P42:P146,MATCH(TRUE,(B42:B146="End"),0))))) ->  | S42: =IF(C42="","",IF(ISNUMBER(SEARCH("Start&End",B42)),SUM(Q42:INDEX(Q42:Q146,MATCH(TRUE,(B42:B146="Start&End"),0))),SUM(Q42:INDEX(Q42:Q146,MATCH(TRUE,(B42:B146="End"),0))))) -> 
A43: 41 | R43: =IF(C43="","",IF(ISNUMBER(SEARCH("Start&End",B43)),SUM(P43:INDEX(P43:P147,MATCH(TRUE,(B43:B147="Start&End"),0))),SUM(P43:INDEX(P43:P147,MATCH(TRUE,(B43:B147="End"),0))))) ->  | S43: =IF(C43="","",IF(ISNUMBER(SEARCH("Start&End",B43)),SUM(Q43:INDEX(Q43:Q147,MATCH(TRUE,(B43:B147="Start&End"),0))),SUM(Q43:INDEX(Q43:Q147,MATCH(TRUE,(B43:B147="End"),0))))) -> 
A44: 42 | R44: =IF(C44="","",IF(ISNUMBER(SEARCH("Start&End",B44)),SUM(P44:INDEX(P44:P148,MATCH(TRUE,(B44:B148="Start&End"),0))),SUM(P44:INDEX(P44:P148,MATCH(TRUE,(B44:B148="End"),0))))) ->  | S44: =IF(C44="","",IF(ISNUMBER(SEARCH("Start&End",B44)),SUM(Q44:INDEX(Q44:Q148,MATCH(TRUE,(B44:B148="Start&End"),0))),SUM(Q44:INDEX(Q44:Q148,MATCH(TRUE,(B44:B148="End"),0))))) -> 
A45: 43 | R45: =IF(C45="","",IF(ISNUMBER(SEARCH("Start&End",B45)),SUM(P45:INDEX(P45:P149,MATCH(TRUE,(B45:B149="Start&End"),0))),SUM(P45:INDEX(P45:P149,MATCH(TRUE,(B45:B149="End"),0))))) ->  | S45: =IF(C45="","",IF(ISNUMBER(SEARCH("Start&End",B45)),SUM(Q45:INDEX(Q45:Q149,MATCH(TRUE,(B45:B149="Start&End"),0))),SUM(Q45:INDEX(Q45:Q149,MATCH(TRUE,(B45:B149="End"),0))))) -> 
A46: 44 | R46: =IF(C46="","",IF(ISNUMBER(SEARCH("Start&End",B46)),SUM(P46:INDEX(P46:P150,MATCH(TRUE,(B46:B150="Start&End"),0))),SUM(P46:INDEX(P46:P150,MATCH(TRUE,(B46:B150="End"),0))))) ->  | S46: =IF(C46="","",IF(ISNUMBER(SEARCH("Start&End",B46)),SUM(Q46:INDEX(Q46:Q150,MATCH(TRUE,(B46:B150="Start&End"),0))),SUM(Q46:INDEX(Q46:Q150,MATCH(TRUE,(B46:B150="End"),0))))) -> 
A47: 45 | R47: =IF(C47="","",IF(ISNUMBER(SEARCH("Start&End",B47)),SUM(P47:INDEX(P47:P151,MATCH(TRUE,(B47:B151="Start&End"),0))),SUM(P47:INDEX(P47:P151,MATCH(TRUE,(B47:B151="End"),0))))) ->  | S47: =IF(C47="","",IF(ISNUMBER(SEARCH("Start&End",B47)),SUM(Q47:INDEX(Q47:Q151,MATCH(TRUE,(B47:B151="Start&End"),0))),SUM(Q47:INDEX(Q47:Q151,MATCH(TRUE,(B47:B151="End"),0))))) -> 
A48: 46 | R48: =IF(C48="","",IF(ISNUMBER(SEARCH("Start&End",B48)),SUM(P48:INDEX(P48:P152,MATCH(TRUE,(B48:B152="Start&End"),0))),SUM(P48:INDEX(P48:P152,MATCH(TRUE,(B48:B152="End"),0))))) ->  | S48: =IF(C48="","",IF(ISNUMBER(SEARCH("Start&End",B48)),SUM(Q48:INDEX(Q48:Q152,MATCH(TRUE,(B48:B152="Start&End"),0))),SUM(Q48:INDEX(Q48:Q152,MATCH(TRUE,(B48:B152="End"),0))))) -> 
A49: 47 | R49: =IF(C49="","",IF(ISNUMBER(SEARCH("Start&End",B49)),SUM(P49:INDEX(P49:P153,MATCH(TRUE,(B49:B153="Start&End"),0))),SUM(P49:INDEX(P49:P153,MATCH(TRUE,(B49:B153="End"),0))))) ->  | S49: =IF(C49="","",IF(ISNUMBER(SEARCH("Start&End",B49)),SUM(Q49:INDEX(Q49:Q153,MATCH(TRUE,(B49:B153="Start&End"),0))),SUM(Q49:INDEX(Q49:Q153,MATCH(TRUE,(B49:B153="End"),0))))) -> 
A50: 48 | R50: =IF(C50="","",IF(ISNUMBER(SEARCH("Start&End",B50)),SUM(P50:INDEX(P50:P154,MATCH(TRUE,(B50:B154="Start&End"),0))),SUM(P50:INDEX(P50:P154,MATCH(TRUE,(B50:B154="End"),0))))) ->  | S50: =IF(C50="","",IF(ISNUMBER(SEARCH("Start&End",B50)),SUM(Q50:INDEX(Q50:Q154,MATCH(TRUE,(B50:B154="Start&End"),0))),SUM(Q50:INDEX(Q50:Q154,MATCH(TRUE,(B50:B154="End"),0))))) -> 
A51: 49 | R51: =IF(C51="","",IF(ISNUMBER(SEARCH("Start&End",B51)),SUM(P51:INDEX(P51:P155,MATCH(TRUE,(B51:B155="Start&End"),0))),SUM(P51:INDEX(P51:P155,MATCH(TRUE,(B51:B155="End"),0))))) ->  | S51: =IF(C51="","",IF(ISNUMBER(SEARCH("Start&End",B51)),SUM(Q51:INDEX(Q51:Q155,MATCH(TRUE,(B51:B155="Start&End"),0))),SUM(Q51:INDEX(Q51:Q155,MATCH(TRUE,(B51:B155="End"),0))))) -> 
A52: 50 | R52: =IF(C52="","",IF(ISNUMBER(SEARCH("Start&End",B52)),SUM(P52:INDEX(P52:P156,MATCH(TRUE,(B52:B156="Start&End"),0))),SUM(P52:INDEX(P52:P156,MATCH(TRUE,(B52:B156="End"),0))))) ->  | S52: =IF(C52="","",IF(ISNUMBER(SEARCH("Start&End",B52)),SUM(Q52:INDEX(Q52:Q156,MATCH(TRUE,(B52:B156="Start&End"),0))),SUM(Q52:INDEX(Q52:Q156,MATCH(TRUE,(B52:B156="End"),0))))) -> 
A53: 51 | R53: =IF(C53="","",IF(ISNUMBER(SEARCH("Start&End",B53)),SUM(P53:INDEX(P53:P157,MATCH(TRUE,(B53:B157="Start&End"),0))),SUM(P53:INDEX(P53:P157,MATCH(TRUE,(B53:B157="End"),0))))) ->  | S53: =IF(C53="","",IF(ISNUMBER(SEARCH("Start&End",B53)),SUM(Q53:INDEX(Q53:Q157,MATCH(TRUE,(B53:B157="Start&End"),0))),SUM(Q53:INDEX(Q53:Q157,MATCH(TRUE,(B53:B157="End"),0))))) -> 
A54: 52 | R54: =IF(C54="","",IF(ISNUMBER(SEARCH("Start&End",B54)),SUM(P54:INDEX(P54:P158,MATCH(TRUE,(B54:B158="Start&End"),0))),SUM(P54:INDEX(P54:P158,MATCH(TRUE,(B54:B158="End"),0))))) ->  | S54: =IF(C54="","",IF(ISNUMBER(SEARCH("Start&End",B54)),SUM(Q54:INDEX(Q54:Q158,MATCH(TRUE,(B54:B158="Start&End"),0))),SUM(Q54:INDEX(Q54:Q158,MATCH(TRUE,(B54:B158="End"),0))))) -> 
A55: 53 | R55: =IF(C55="","",IF(ISNUMBER(SEARCH("Start&End",B55)),SUM(P55:INDEX(P55:P159,MATCH(TRUE,(B55:B159="Start&End"),0))),SUM(P55:INDEX(P55:P159,MATCH(TRUE,(B55:B159="End"),0))))) ->  | S55: =IF(C55="","",IF(ISNUMBER(SEARCH("Start&End",B55)),SUM(Q55:INDEX(Q55:Q159,MATCH(TRUE,(B55:B159="Start&End"),0))),SUM(Q55:INDEX(Q55:Q159,MATCH(TRUE,(B55:B159="End"),0))))) -> 
A56: 54 | R56: =IF(C56="","",IF(ISNUMBER(SEARCH("Start&End",B56)),SUM(P56:INDEX(P56:P160,MATCH(TRUE,(B56:B160="Start&End"),0))),SUM(P56:INDEX(P56:P160,MATCH(TRUE,(B56:B160="End"),0))))) ->  | S56: =IF(C56="","",IF(ISNUMBER(SEARCH("Start&End",B56)),SUM(Q56:INDEX(Q56:Q160,MATCH(TRUE,(B56:B160="Start&End"),0))),SUM(Q56:INDEX(Q56:Q160,MATCH(TRUE,(B56:B160="End"),0))))) -> 
A57: 55 | R57: =IF(C57="","",IF(ISNUMBER(SEARCH("Start&End",B57)),SUM(P57:INDEX(P57:P161,MATCH(TRUE,(B57:B161="Start&End"),0))),SUM(P57:INDEX(P57:P161,MATCH(TRUE,(B57:B161="End"),0))))) ->  | S57: =IF(C57="","",IF(ISNUMBER(SEARCH("Start&End",B57)),SUM(Q57:INDEX(Q57:Q161,MATCH(TRUE,(B57:B161="Start&End"),0))),SUM(Q57:INDEX(Q57:Q161,MATCH(TRUE,(B57:B161="End"),0))))) -> 
A58: 56 | R58: =IF(C58="","",IF(ISNUMBER(SEARCH("Start&End",B58)),SUM(P58:INDEX(P58:P162,MATCH(TRUE,(B58:B162="Start&End"),0))),SUM(P58:INDEX(P58:P162,MATCH(TRUE,(B58:B162="End"),0))))) ->  | S58: =IF(C58="","",IF(ISNUMBER(SEARCH("Start&End",B58)),SUM(Q58:INDEX(Q58:Q162,MATCH(TRUE,(B58:B162="Start&End"),0))),SUM(Q58:INDEX(Q58:Q162,MATCH(TRUE,(B58:B162="End"),0))))) -> 
A59: 57 | R59: =IF(C59="","",IF(ISNUMBER(SEARCH("Start&End",B59)),SUM(P59:INDEX(P59:P163,MATCH(TRUE,(B59:B163="Start&End"),0))),SUM(P59:INDEX(P59:P163,MATCH(TRUE,(B59:B163="End"),0))))) ->  | S59: =IF(C59="","",IF(ISNUMBER(SEARCH("Start&End",B59)),SUM(Q59:INDEX(Q59:Q163,MATCH(TRUE,(B59:B163="Start&End"),0))),SUM(Q59:INDEX(Q59:Q163,MATCH(TRUE,(B59:B163="End"),0))))) -> 
A60: 58 | R60: =IF(C60="","",IF(ISNUMBER(SEARCH("Start&End",B60)),SUM(P60:INDEX(P60:P164,MATCH(TRUE,(B60:B164="Start&End"),0))),SUM(P60:INDEX(P60:P164,MATCH(TRUE,(B60:B164="End"),0))))) ->  | S60: =IF(C60="","",IF(ISNUMBER(SEARCH("Start&End",B60)),SUM(Q60:INDEX(Q60:Q164,MATCH(TRUE,(B60:B164="Start&End"),0))),SUM(Q60:INDEX(Q60:Q164,MATCH(TRUE,(B60:B164="End"),0))))) -> 
A61: 59 | R61: =IF(C61="","",IF(ISNUMBER(SEARCH("Start&End",B61)),SUM(P61:INDEX(P61:P165,MATCH(TRUE,(B61:B165="Start&End"),0))),SUM(P61:INDEX(P61:P165,MATCH(TRUE,(B61:B165="End"),0))))) ->  | S61: =IF(C61="","",IF(ISNUMBER(SEARCH("Start&End",B61)),SUM(Q61:INDEX(Q61:Q165,MATCH(TRUE,(B61:B165="Start&End"),0))),SUM(Q61:INDEX(Q61:Q165,MATCH(TRUE,(B61:B165="End"),0))))) -> 
A62: 60 | R62: =IF(C62="","",IF(ISNUMBER(SEARCH("Start&End",B62)),SUM(P62:INDEX(P62:P166,MATCH(TRUE,(B62:B166="Start&End"),0))),SUM(P62:INDEX(P62:P166,MATCH(TRUE,(B62:B166="End"),0))))) ->  | S62: =IF(C62="","",IF(ISNUMBER(SEARCH("Start&End",B62)),SUM(Q62:INDEX(Q62:Q166,MATCH(TRUE,(B62:B166="Start&End"),0))),SUM(Q62:INDEX(Q62:Q166,MATCH(TRUE,(B62:B166="End"),0))))) -> 
A63: 61 | R63: =IF(C63="","",IF(ISNUMBER(SEARCH("Start&End",B63)),SUM(P63:INDEX(P63:P167,MATCH(TRUE,(B63:B167="Start&End"),0))),SUM(P63:INDEX(P63:P167,MATCH(TRUE,(B63:B167="End"),0))))) ->  | S63: =IF(C63="","",IF(ISNUMBER(SEARCH("Start&End",B63)),SUM(Q63:INDEX(Q63:Q167,MATCH(TRUE,(B63:B167="Start&End"),0))),SUM(Q63:INDEX(Q63:Q167,MATCH(TRUE,(B63:B167="End"),0))))) -> 
A64: 62 | R64: =IF(C64="","",IF(ISNUMBER(SEARCH("Start&End",B64)),SUM(P64:INDEX(P64:P168,MATCH(TRUE,(B64:B168="Start&End"),0))),SUM(P64:INDEX(P64:P168,MATCH(TRUE,(B64:B168="End"),0))))) ->  | S64: =IF(C64="","",IF(ISNUMBER(SEARCH("Start&End",B64)),SUM(Q64:INDEX(Q64:Q168,MATCH(TRUE,(B64:B168="Start&End"),0))),SUM(Q64:INDEX(Q64:Q168,MATCH(TRUE,(B64:B168="End"),0))))) -> 
A65: 63 | R65: =IF(C65="","",IF(ISNUMBER(SEARCH("Start&End",B65)),SUM(P65:INDEX(P65:P169,MATCH(TRUE,(B65:B169="Start&End"),0))),SUM(P65:INDEX(P65:P169,MATCH(TRUE,(B65:B169="End"),0))))) ->  | S65: =IF(C65="","",IF(ISNUMBER(SEARCH("Start&End",B65)),SUM(Q65:INDEX(Q65:Q169,MATCH(TRUE,(B65:B169="Start&End"),0))),SUM(Q65:INDEX(Q65:Q169,MATCH(TRUE,(B65:B169="End"),0))))) -> 
A66: 64 | R66: =IF(C66="","",IF(ISNUMBER(SEARCH("Start&End",B66)),SUM(P66:INDEX(P66:P170,MATCH(TRUE,(B66:B170="Start&End"),0))),SUM(P66:INDEX(P66:P170,MATCH(TRUE,(B66:B170="End"),0))))) ->  | S66: =IF(C66="","",IF(ISNUMBER(SEARCH("Start&End",B66)),SUM(Q66:INDEX(Q66:Q170,MATCH(TRUE,(B66:B170="Start&End"),0))),SUM(Q66:INDEX(Q66:Q170,MATCH(TRUE,(B66:B170="End"),0))))) -> 
A67: 65 | Q67: =IF(AA67="","",O67-P67) ->  | R67: =IF(C67="","",IF(ISNUMBER(SEARCH("Start&End",B67)),SUM(P67:INDEX(P67:P171,MATCH(TRUE,(B67:B171="Start&End"),0))),SUM(P67:INDEX(P67:P171,MATCH(TRUE,(B67:B171="End"),0))))) ->  | S67: =IF(C67="","",IF(ISNUMBER(SEARCH("Start&End",B67)),SUM(Q67:INDEX(Q67:Q171,MATCH(TRUE,(B67:B171="Start&End"),0))),SUM(Q67:INDEX(Q67:Q171,MATCH(TRUE,(B67:B171="End"),0))))) ->  | T67: =IF(ISNUMBER(S67),S67,"") ->  | AA67: =IF((H67+I67)*G67=0,"",(H67+I67)*G67) ->  | AB67: =IF(ISNUMBER(SEARCH("FUT",E67)),AZ67,IF(ISNUMBER(SEARCH("OPT",E67)),BH67,IF(ISNUMBER(SEARCH("HOLD",E67)),AJ67,AR67))) ->  | AC67: =IF(ISNUMBER(SEARCH("HOLD",E67)),AK67,IF(ISNUMBER(SEARCH("INTRA",E67)),AS67,IF(ISNUMBER(SEARCH("FUT",E67)),BA67,BI67))) ->  | AD67: =IF(ISNUMBER(SEARCH("HOLD",E67)),AL67,IF(ISNUMBER(SEARCH("INTRA",E67)),AT67,IF(ISNUMBER(SEARCH("FUT",E67)),BB67,BJ67))) ->  | AE67: =IF(ISNUMBER(SEARCH("HOLD",E67)),AM67,IF(ISNUMBER(SEARCH("INTRA",E67)),AU67,IF(ISNUMBER(SEARCH("FUT",E67)),BC67,BK67))) ->  | AF67: =IF(ISNUMBER(SEARCH("HOLD",E67)),AN67,IF(ISNUMBER(SEARCH("INTRA",E67)),AV67,IF(ISNUMBER(SEARCH("FUT",E67)),BD67,BL67))) ->  | AG67: =IF(ISNUMBER(SEARCH("HOLD",E67)),AO67,IF(ISNUMBER(SEARCH("INTRA",E67)),AW67,IF(ISNUMBER(SEARCH("FUT",E67)),BE67,BM67))) ->  | AO67: =IF(G67&H67="","",ROUND(G67*H67*0.00015,2)) ->  | AR67: =IF(MIN(20,((G67*H67*0.0003)))+MIN(20,((G67*H67*0.0003)))=0,"",MIN(20,((G67*H67*0.0003)))+MIN(20,((G67*H67*0.0003)))) ->  | AS67: =IF(I67&G67="","",ROUND(I67*G67*0.00025,0)) ->  | AW67: =IF(G67&H67="","",ROUND(G67*H67*0.00003,2)) ->  | AZ67: =IF(MIN(20,((G67*H67*0.0003)))+MIN(20,((G67*H67*0.0003)))=0,"",MIN(20,((G67*H67*0.0003)))+MIN(20,((G67*H67*0.0003)))) ->  | BA67: =IF(I67&G67="","",ROUND(I67*G67*0.0001,0)) ->  | BE67: =IF(G67&H67="","",ROUND(G67*H67*0.00002,2)) ->  | BH67: =IF(AA67="","",40) ->  | BI67: =IF(I67&G67="","",ROUND(I67*G67*0.0005,0)) ->  | BJ67: =IF(AA67="","",ROUND(AA67*0.00053,2)) ->  | BL67: =IF(AA67="","",ROUND((5/10000000)*AA67,2)) ->  | BM67: =IF(G67&H67="","",ROUND(G67*H67*0.00003,2)) -> 
A68: 66 | M68: =IF(OR(J68="",K68=""),"",IF(F68="Long", ((K68-H68)/(H68-J68)), ((I68-K68)/(J68-I68)) )) ->  | N68: =IF(OR(I68="",D68="",H68="",G68="",E68="",K68=""),"",IF(I68=K68,"Target Achieved",IF(I68=J68,"SL Hit",IF(I68<J68,"Extended SL Hit",IF(I68>K68,"Target Overachieved",IF(AND(I68>=H68,I68<K68),"Early Profit Exit","Early Loss Exit")))))) ->  | O68: =IF(AA68="","",IF(OR(I68="",H68=""),0,G68*(I68-H68))) ->  | P68: =IF(AH68="","",AH68) ->  | R68: =IF(C68="","",IF(ISNUMBER(SEARCH("Start&End",B68)),SUM(P68:INDEX(P68:P172,MATCH(TRUE,(B68:B172="Start&End"),0))),SUM(P68:INDEX(P68:P172,MATCH(TRUE,(B68:B172="End"),0))))) ->  | S68: =IF(C68="","",IF(ISNUMBER(SEARCH("Start&End",B68)),SUM(Q68:INDEX(Q68:Q172,MATCH(TRUE,(B68:B172="Start&End"),0))),SUM(Q68:INDEX(Q68:Q172,MATCH(TRUE,(B68:B172="End"),0))))) ->  | AH68: =IF(AB68&AC68&AD68&AE68&AF68&AG68="","",SUM(AB68:AG68)) ->  | AJ68: =IF(AA68="","",0) ->  | AK68: =IF(AA68="","",ROUND(AA68*0.001,2)) ->  | AL68: =IF(AA68="","",ROUND(AA68*0.0000345,2)) ->  | AM68: =IF(AJ68&AL68="","",ROUND((AJ68+AL68)*0.18,2)) ->  | AN68: =IF(AA68="","",ROUND((5/10000000)*AA68,2)) ->  | AP68: =IF(AK68&AL68&AM68&AN68&AO68="","",SUM(AK68:AO68)) ->  | AT68: =IF(AA68="","",ROUND(AA68*0.0000345,2)) ->  | AU68: =IF(AR68&AT68="","",ROUND((AR68+AT68)*0.18,2)) ->  | AV68: =IF(AA68="","",ROUND((5/10000000)*AA68,2)) ->  | AX68: =IF(AR68&AS68&AT68&AU68&AV68&AW68="","",SUM(AR68:AW68)) ->  | BB68: =IF(AA68="","",ROUND(AA68*0.00002,2)) ->  | BC68: =IF(AZ68&BB68="","",ROUND((AZ68+BB68)*0.18,2)) ->  | BD68: =IF(AA68="","",ROUND((5/10000000)*AA68,2)) ->  | BK68: =IF(BH68&BJ68="","",ROUND((BH68+BJ68)*0.18,2)) ->  | BN68: =IF(BH68&BI68&BJ68&BK68&BL68&BM68="","",SUM(BH68:BM68)) -> 
A69: 67 | R69: =IF(C69="","",IF(ISNUMBER(SEARCH("Start&End",B69)),SUM(P69:INDEX(P69:P173,MATCH(TRUE,(B69:B173="Start&End"),0))),SUM(P69:INDEX(P69:P173,MATCH(TRUE,(B69:B173="End"),0))))) ->  | S69: =IF(C69="","",IF(ISNUMBER(SEARCH("Start&End",B69)),SUM(Q69:INDEX(Q69:Q173,MATCH(TRUE,(B69:B173="Start&End"),0))),SUM(Q69:INDEX(Q69:Q173,MATCH(TRUE,(B69:B173="End"),0))))) ->  | BF69: =IF(FAX69&BA69&BB69&BC69&BD69&BE69="","",SUM(AZ69:BE69)) -> 
A70: 68 | R70: =IF(C70="","",IF(ISNUMBER(SEARCH("Start&End",B70)),SUM(P70:INDEX(P70:P174,MATCH(TRUE,(B70:B174="Start&End"),0))),SUM(P70:INDEX(P70:P174,MATCH(TRUE,(B70:B174="End"),0))))) ->  | S70: =IF(C70="","",IF(ISNUMBER(SEARCH("Start&End",B70)),SUM(Q70:INDEX(Q70:Q174,MATCH(TRUE,(B70:B174="Start&End"),0))),SUM(Q70:INDEX(Q70:Q174,MATCH(TRUE,(B70:B174="End"),0))))) -> 
A71: 69 | R71: =IF(C71="","",IF(ISNUMBER(SEARCH("Start&End",B71)),SUM(P71:INDEX(P71:P175,MATCH(TRUE,(B71:B175="Start&End"),0))),SUM(P71:INDEX(P71:P175,MATCH(TRUE,(B71:B175="End"),0))))) ->  | S71: =IF(C71="","",IF(ISNUMBER(SEARCH("Start&End",B71)),SUM(Q71:INDEX(Q71:Q175,MATCH(TRUE,(B71:B175="Start&End"),0))),SUM(Q71:INDEX(Q71:Q175,MATCH(TRUE,(B71:B175="End"),0))))) -> 
A72: 70 | R72: =IF(C72="","",IF(ISNUMBER(SEARCH("Start&End",B72)),SUM(P72:INDEX(P72:P176,MATCH(TRUE,(B72:B176="Start&End"),0))),SUM(P72:INDEX(P72:P176,MATCH(TRUE,(B72:B176="End"),0))))) ->  | S72: =IF(C72="","",IF(ISNUMBER(SEARCH("Start&End",B72)),SUM(Q72:INDEX(Q72:Q176,MATCH(TRUE,(B72:B176="Start&End"),0))),SUM(Q72:INDEX(Q72:Q176,MATCH(TRUE,(B72:B176="End"),0))))) -> 
A73: 71 | R73: =IF(C73="","",IF(ISNUMBER(SEARCH("Start&End",B73)),SUM(P73:INDEX(P73:P177,MATCH(TRUE,(B73:B177="Start&End"),0))),SUM(P73:INDEX(P73:P177,MATCH(TRUE,(B73:B177="End"),0))))) ->  | S73: =IF(C73="","",IF(ISNUMBER(SEARCH("Start&End",B73)),SUM(Q73:INDEX(Q73:Q177,MATCH(TRUE,(B73:B177="Start&End"),0))),SUM(Q73:INDEX(Q73:Q177,MATCH(TRUE,(B73:B177="End"),0))))) -> 
A74: 72 | R74: =IF(C74="","",IF(ISNUMBER(SEARCH("Start&End",B74)),SUM(P74:INDEX(P74:P178,MATCH(TRUE,(B74:B178="Start&End"),0))),SUM(P74:INDEX(P74:P178,MATCH(TRUE,(B74:B178="End"),0))))) ->  | S74: =IF(C74="","",IF(ISNUMBER(SEARCH("Start&End",B74)),SUM(Q74:INDEX(Q74:Q178,MATCH(TRUE,(B74:B178="Start&End"),0))),SUM(Q74:INDEX(Q74:Q178,MATCH(TRUE,(B74:B178="End"),0))))) -> 
A75: 73 | R75: =IF(C75="","",IF(ISNUMBER(SEARCH("Start&End",B75)),SUM(P75:INDEX(P75:P179,MATCH(TRUE,(B75:B179="Start&End"),0))),SUM(P75:INDEX(P75:P179,MATCH(TRUE,(B75:B179="End"),0))))) ->  | S75: =IF(C75="","",IF(ISNUMBER(SEARCH("Start&End",B75)),SUM(Q75:INDEX(Q75:Q179,MATCH(TRUE,(B75:B179="Start&End"),0))),SUM(Q75:INDEX(Q75:Q179,MATCH(TRUE,(B75:B179="End"),0))))) -> 
A76: 74 | R76: =IF(C76="","",IF(ISNUMBER(SEARCH("Start&End",B76)),SUM(P76:INDEX(P76:P180,MATCH(TRUE,(B76:B180="Start&End"),0))),SUM(P76:INDEX(P76:P180,MATCH(TRUE,(B76:B180="End"),0))))) ->  | S76: =IF(C76="","",IF(ISNUMBER(SEARCH("Start&End",B76)),SUM(Q76:INDEX(Q76:Q180,MATCH(TRUE,(B76:B180="Start&End"),0))),SUM(Q76:INDEX(Q76:Q180,MATCH(TRUE,(B76:B180="End"),0))))) -> 
A77: 75 | R77: =IF(C77="","",IF(ISNUMBER(SEARCH("Start&End",B77)),SUM(P77:INDEX(P77:P181,MATCH(TRUE,(B77:B181="Start&End"),0))),SUM(P77:INDEX(P77:P181,MATCH(TRUE,(B77:B181="End"),0))))) ->  | S77: =IF(C77="","",IF(ISNUMBER(SEARCH("Start&End",B77)),SUM(Q77:INDEX(Q77:Q181,MATCH(TRUE,(B77:B181="Start&End"),0))),SUM(Q77:INDEX(Q77:Q181,MATCH(TRUE,(B77:B181="End"),0))))) -> 
A78: 76 | R78: =IF(C78="","",IF(ISNUMBER(SEARCH("Start&End",B78)),SUM(P78:INDEX(P78:P182,MATCH(TRUE,(B78:B182="Start&End"),0))),SUM(P78:INDEX(P78:P182,MATCH(TRUE,(B78:B182="End"),0))))) ->  | S78: =IF(C78="","",IF(ISNUMBER(SEARCH("Start&End",B78)),SUM(Q78:INDEX(Q78:Q182,MATCH(TRUE,(B78:B182="Start&End"),0))),SUM(Q78:INDEX(Q78:Q182,MATCH(TRUE,(B78:B182="End"),0))))) -> 
A79: 77 | R79: =IF(C79="","",IF(ISNUMBER(SEARCH("Start&End",B79)),SUM(P79:INDEX(P79:P183,MATCH(TRUE,(B79:B183="Start&End"),0))),SUM(P79:INDEX(P79:P183,MATCH(TRUE,(B79:B183="End"),0))))) ->  | S79: =IF(C79="","",IF(ISNUMBER(SEARCH("Start&End",B79)),SUM(Q79:INDEX(Q79:Q183,MATCH(TRUE,(B79:B183="Start&End"),0))),SUM(Q79:INDEX(Q79:Q183,MATCH(TRUE,(B79:B183="End"),0))))) -> 
A80: 78 | R80: =IF(C80="","",IF(ISNUMBER(SEARCH("Start&End",B80)),SUM(P80:INDEX(P80:P184,MATCH(TRUE,(B80:B184="Start&End"),0))),SUM(P80:INDEX(P80:P184,MATCH(TRUE,(B80:B184="End"),0))))) ->  | S80: =IF(C80="","",IF(ISNUMBER(SEARCH("Start&End",B80)),SUM(Q80:INDEX(Q80:Q184,MATCH(TRUE,(B80:B184="Start&End"),0))),SUM(Q80:INDEX(Q80:Q184,MATCH(TRUE,(B80:B184="End"),0))))) -> 
A81: 79 | R81: =IF(C81="","",IF(ISNUMBER(SEARCH("Start&End",B81)),SUM(P81:INDEX(P81:P185,MATCH(TRUE,(B81:B185="Start&End"),0))),SUM(P81:INDEX(P81:P185,MATCH(TRUE,(B81:B185="End"),0))))) ->  | S81: =IF(C81="","",IF(ISNUMBER(SEARCH("Start&End",B81)),SUM(Q81:INDEX(Q81:Q185,MATCH(TRUE,(B81:B185="Start&End"),0))),SUM(Q81:INDEX(Q81:Q185,MATCH(TRUE,(B81:B185="End"),0))))) -> 
A82: 80 | R82: =IF(C82="","",IF(ISNUMBER(SEARCH("Start&End",B82)),SUM(P82:INDEX(P82:P186,MATCH(TRUE,(B82:B186="Start&End"),0))),SUM(P82:INDEX(P82:P186,MATCH(TRUE,(B82:B186="End"),0))))) ->  | S82: =IF(C82="","",IF(ISNUMBER(SEARCH("Start&End",B82)),SUM(Q82:INDEX(Q82:Q186,MATCH(TRUE,(B82:B186="Start&End"),0))),SUM(Q82:INDEX(Q82:Q186,MATCH(TRUE,(B82:B186="End"),0))))) -> 
A83: 81 | R83: =IF(C83="","",IF(ISNUMBER(SEARCH("Start&End",B83)),SUM(P83:INDEX(P83:P187,MATCH(TRUE,(B83:B187="Start&End"),0))),SUM(P83:INDEX(P83:P187,MATCH(TRUE,(B83:B187="End"),0))))) ->  | S83: =IF(C83="","",IF(ISNUMBER(SEARCH("Start&End",B83)),SUM(Q83:INDEX(Q83:Q187,MATCH(TRUE,(B83:B187="Start&End"),0))),SUM(Q83:INDEX(Q83:Q187,MATCH(TRUE,(B83:B187="End"),0))))) -> 
A84: 82 | R84: =IF(C84="","",IF(ISNUMBER(SEARCH("Start&End",B84)),SUM(P84:INDEX(P84:P188,MATCH(TRUE,(B84:B188="Start&End"),0))),SUM(P84:INDEX(P84:P188,MATCH(TRUE,(B84:B188="End"),0))))) ->  | S84: =IF(C84="","",IF(ISNUMBER(SEARCH("Start&End",B84)),SUM(Q84:INDEX(Q84:Q188,MATCH(TRUE,(B84:B188="Start&End"),0))),SUM(Q84:INDEX(Q84:Q188,MATCH(TRUE,(B84:B188="End"),0))))) -> 
A85: 83 | R85: =IF(C85="","",IF(ISNUMBER(SEARCH("Start&End",B85)),SUM(P85:INDEX(P85:P189,MATCH(TRUE,(B85:B189="Start&End"),0))),SUM(P85:INDEX(P85:P189,MATCH(TRUE,(B85:B189="End"),0))))) ->  | S85: =IF(C85="","",IF(ISNUMBER(SEARCH("Start&End",B85)),SUM(Q85:INDEX(Q85:Q189,MATCH(TRUE,(B85:B189="Start&End"),0))),SUM(Q85:INDEX(Q85:Q189,MATCH(TRUE,(B85:B189="End"),0))))) -> 
A86: 84 | R86: =IF(C86="","",IF(ISNUMBER(SEARCH("Start&End",B86)),SUM(P86:INDEX(P86:P190,MATCH(TRUE,(B86:B190="Start&End"),0))),SUM(P86:INDEX(P86:P190,MATCH(TRUE,(B86:B190="End"),0))))) ->  | S86: =IF(C86="","",IF(ISNUMBER(SEARCH("Start&End",B86)),SUM(Q86:INDEX(Q86:Q190,MATCH(TRUE,(B86:B190="Start&End"),0))),SUM(Q86:INDEX(Q86:Q190,MATCH(TRUE,(B86:B190="End"),0))))) -> 
A87: 85 | R87: =IF(C87="","",IF(ISNUMBER(SEARCH("Start&End",B87)),SUM(P87:INDEX(P87:P191,MATCH(TRUE,(B87:B191="Start&End"),0))),SUM(P87:INDEX(P87:P191,MATCH(TRUE,(B87:B191="End"),0))))) ->  | S87: =IF(C87="","",IF(ISNUMBER(SEARCH("Start&End",B87)),SUM(Q87:INDEX(Q87:Q191,MATCH(TRUE,(B87:B191="Start&End"),0))),SUM(Q87:INDEX(Q87:Q191,MATCH(TRUE,(B87:B191="End"),0))))) -> 
A88: 86 | R88: =IF(C88="","",IF(ISNUMBER(SEARCH("Start&End",B88)),SUM(P88:INDEX(P88:P192,MATCH(TRUE,(B88:B192="Start&End"),0))),SUM(P88:INDEX(P88:P192,MATCH(TRUE,(B88:B192="End"),0))))) ->  | S88: =IF(C88="","",IF(ISNUMBER(SEARCH("Start&End",B88)),SUM(Q88:INDEX(Q88:Q192,MATCH(TRUE,(B88:B192="Start&End"),0))),SUM(Q88:INDEX(Q88:Q192,MATCH(TRUE,(B88:B192="End"),0))))) -> 
A89: 87 | R89: =IF(C89="","",IF(ISNUMBER(SEARCH("Start&End",B89)),SUM(P89:INDEX(P89:P193,MATCH(TRUE,(B89:B193="Start&End"),0))),SUM(P89:INDEX(P89:P193,MATCH(TRUE,(B89:B193="End"),0))))) ->  | S89: =IF(C89="","",IF(ISNUMBER(SEARCH("Start&End",B89)),SUM(Q89:INDEX(Q89:Q193,MATCH(TRUE,(B89:B193="Start&End"),0))),SUM(Q89:INDEX(Q89:Q193,MATCH(TRUE,(B89:B193="End"),0))))) -> 
A90: 88 | R90: =IF(C90="","",IF(ISNUMBER(SEARCH("Start&End",B90)),SUM(P90:INDEX(P90:P194,MATCH(TRUE,(B90:B194="Start&End"),0))),SUM(P90:INDEX(P90:P194,MATCH(TRUE,(B90:B194="End"),0))))) ->  | S90: =IF(C90="","",IF(ISNUMBER(SEARCH("Start&End",B90)),SUM(Q90:INDEX(Q90:Q194,MATCH(TRUE,(B90:B194="Start&End"),0))),SUM(Q90:INDEX(Q90:Q194,MATCH(TRUE,(B90:B194="End"),0))))) -> 
A91: 89 | R91: =IF(C91="","",IF(ISNUMBER(SEARCH("Start&End",B91)),SUM(P91:INDEX(P91:P195,MATCH(TRUE,(B91:B195="Start&End"),0))),SUM(P91:INDEX(P91:P195,MATCH(TRUE,(B91:B195="End"),0))))) ->  | S91: =IF(C91="","",IF(ISNUMBER(SEARCH("Start&End",B91)),SUM(Q91:INDEX(Q91:Q195,MATCH(TRUE,(B91:B195="Start&End"),0))),SUM(Q91:INDEX(Q91:Q195,MATCH(TRUE,(B91:B195="End"),0))))) -> 
A92: 90 | R92: =IF(C92="","",IF(ISNUMBER(SEARCH("Start&End",B92)),SUM(P92:INDEX(P92:P196,MATCH(TRUE,(B92:B196="Start&End"),0))),SUM(P92:INDEX(P92:P196,MATCH(TRUE,(B92:B196="End"),0))))) ->  | S92: =IF(C92="","",IF(ISNUMBER(SEARCH("Start&End",B92)),SUM(Q92:INDEX(Q92:Q196,MATCH(TRUE,(B92:B196="Start&End"),0))),SUM(Q92:INDEX(Q92:Q196,MATCH(TRUE,(B92:B196="End"),0))))) -> 
A93: 91 | R93: =IF(C93="","",IF(ISNUMBER(SEARCH("Start&End",B93)),SUM(P93:INDEX(P93:P197,MATCH(TRUE,(B93:B197="Start&End"),0))),SUM(P93:INDEX(P93:P197,MATCH(TRUE,(B93:B197="End"),0))))) ->  | S93: =IF(C93="","",IF(ISNUMBER(SEARCH("Start&End",B93)),SUM(Q93:INDEX(Q93:Q197,MATCH(TRUE,(B93:B197="Start&End"),0))),SUM(Q93:INDEX(Q93:Q197,MATCH(TRUE,(B93:B197="End"),0))))) -> 
A94: 92 | R94: =IF(C94="","",IF(ISNUMBER(SEARCH("Start&End",B94)),SUM(P94:INDEX(P94:P198,MATCH(TRUE,(B94:B198="Start&End"),0))),SUM(P94:INDEX(P94:P198,MATCH(TRUE,(B94:B198="End"),0))))) ->  | S94: =IF(C94="","",IF(ISNUMBER(SEARCH("Start&End",B94)),SUM(Q94:INDEX(Q94:Q198,MATCH(TRUE,(B94:B198="Start&End"),0))),SUM(Q94:INDEX(Q94:Q198,MATCH(TRUE,(B94:B198="End"),0))))) -> 
A95: 93 | R95: =IF(C95="","",IF(ISNUMBER(SEARCH("Start&End",B95)),SUM(P95:INDEX(P95:P199,MATCH(TRUE,(B95:B199="Start&End"),0))),SUM(P95:INDEX(P95:P199,MATCH(TRUE,(B95:B199="End"),0))))) ->  | S95: =IF(C95="","",IF(ISNUMBER(SEARCH("Start&End",B95)),SUM(Q95:INDEX(Q95:Q199,MATCH(TRUE,(B95:B199="Start&End"),0))),SUM(Q95:INDEX(Q95:Q199,MATCH(TRUE,(B95:B199="End"),0))))) -> 
A96: 94 | R96: =IF(C96="","",IF(ISNUMBER(SEARCH("Start&End",B96)),SUM(P96:INDEX(P96:P200,MATCH(TRUE,(B96:B200="Start&End"),0))),SUM(P96:INDEX(P96:P200,MATCH(TRUE,(B96:B200="End"),0))))) ->  | S96: =IF(C96="","",IF(ISNUMBER(SEARCH("Start&End",B96)),SUM(Q96:INDEX(Q96:Q200,MATCH(TRUE,(B96:B200="Start&End"),0))),SUM(Q96:INDEX(Q96:Q200,MATCH(TRUE,(B96:B200="End"),0))))) -> 
A97: 95 | R97: =IF(C97="","",IF(ISNUMBER(SEARCH("Start&End",B97)),SUM(P97:INDEX(P97:P201,MATCH(TRUE,(B97:B201="Start&End"),0))),SUM(P97:INDEX(P97:P201,MATCH(TRUE,(B97:B201="End"),0))))) ->  | S97: =IF(C97="","",IF(ISNUMBER(SEARCH("Start&End",B97)),SUM(Q97:INDEX(Q97:Q201,MATCH(TRUE,(B97:B201="Start&End"),0))),SUM(Q97:INDEX(Q97:Q201,MATCH(TRUE,(B97:B201="End"),0))))) -> 
A98: 96 | R98: =IF(C98="","",IF(ISNUMBER(SEARCH("Start&End",B98)),SUM(P98:INDEX(P98:P202,MATCH(TRUE,(B98:B202="Start&End"),0))),SUM(P98:INDEX(P98:P202,MATCH(TRUE,(B98:B202="End"),0))))) ->  | S98: =IF(C98="","",IF(ISNUMBER(SEARCH("Start&End",B98)),SUM(Q98:INDEX(Q98:Q202,MATCH(TRUE,(B98:B202="Start&End"),0))),SUM(Q98:INDEX(Q98:Q202,MATCH(TRUE,(B98:B202="End"),0))))) -> 
A99: 97 | R99: =IF(C99="","",IF(ISNUMBER(SEARCH("Start&End",B99)),SUM(P99:INDEX(P99:P203,MATCH(TRUE,(B99:B203="Start&End"),0))),SUM(P99:INDEX(P99:P203,MATCH(TRUE,(B99:B203="End"),0))))) ->  | S99: =IF(C99="","",IF(ISNUMBER(SEARCH("Start&End",B99)),SUM(Q99:INDEX(Q99:Q203,MATCH(TRUE,(B99:B203="Start&End"),0))),SUM(Q99:INDEX(Q99:Q203,MATCH(TRUE,(B99:B203="End"),0))))) -> 
A100: 98 | R100: =IF(C100="","",IF(ISNUMBER(SEARCH("Start&End",B100)),SUM(P100:INDEX(P100:P204,MATCH(TRUE,(B100:B204="Start&End"),0))),SUM(P100:INDEX(P100:P204,MATCH(TRUE,(B100:B204="End"),0))))) ->  | S100: =IF(C100="","",IF(ISNUMBER(SEARCH("Start&End",B100)),SUM(Q100:INDEX(Q100:Q204,MATCH(TRUE,(B100:B204="Start&End"),0))),SUM(Q100:INDEX(Q100:Q204,MATCH(TRUE,(B100:B204="End"),0))))) -> 
A101: 99 | R101: =IF(C101="","",IF(ISNUMBER(SEARCH("Start&End",B101)),SUM(P101:INDEX(P101:P205,MATCH(TRUE,(B101:B205="Start&End"),0))),SUM(P101:INDEX(P101:P205,MATCH(TRUE,(B101:B205="End"),0))))) ->  | S101: =IF(C101="","",IF(ISNUMBER(SEARCH("Start&End",B101)),SUM(Q101:INDEX(Q101:Q205,MATCH(TRUE,(B101:B205="Start&End"),0))),SUM(Q101:INDEX(Q101:Q205,MATCH(TRUE,(B101:B205="End"),0))))) -> 
A102: 100 | R102: =IF(C102="","",IF(ISNUMBER(SEARCH("Start&End",B102)),SUM(P102:INDEX(P102:P206,MATCH(TRUE,(B102:B206="Start&End"),0))),SUM(P102:INDEX(P102:P206,MATCH(TRUE,(B102:B206="End"),0))))) ->  | S102: =IF(C102="","",IF(ISNUMBER(SEARCH("Start&End",B102)),SUM(Q102:INDEX(Q102:Q206,MATCH(TRUE,(B102:B206="Start&End"),0))),SUM(Q102:INDEX(Q102:Q206,MATCH(TRUE,(B102:B206="End"),0))))) -> 
A103: 101 | R103: =IF(C103="","",IF(ISNUMBER(SEARCH("Start&End",B103)),SUM(P103:INDEX(P103:P207,MATCH(TRUE,(B103:B207="Start&End"),0))),SUM(P103:INDEX(P103:P207,MATCH(TRUE,(B103:B207="End"),0))))) ->  | S103: =IF(C103="","",IF(ISNUMBER(SEARCH("Start&End",B103)),SUM(Q103:INDEX(Q103:Q207,MATCH(TRUE,(B103:B207="Start&End"),0))),SUM(Q103:INDEX(Q103:Q207,MATCH(TRUE,(B103:B207="End"),0))))) -> 
A104: 102 | R104: =IF(C104="","",IF(ISNUMBER(SEARCH("Start&End",B104)),SUM(P104:INDEX(P104:P208,MATCH(TRUE,(B104:B208="Start&End"),0))),SUM(P104:INDEX(P104:P208,MATCH(TRUE,(B104:B208="End"),0))))) ->  | S104: =IF(C104="","",IF(ISNUMBER(SEARCH("Start&End",B104)),SUM(Q104:INDEX(Q104:Q208,MATCH(TRUE,(B104:B208="Start&End"),0))),SUM(Q104:INDEX(Q104:Q208,MATCH(TRUE,(B104:B208="End"),0))))) -> 
A105: 103 | R105: =IF(C105="","",IF(ISNUMBER(SEARCH("Start&End",B105)),SUM(P105:INDEX(P105:P209,MATCH(TRUE,(B105:B209="Start&End"),0))),SUM(P105:INDEX(P105:P209,MATCH(TRUE,(B105:B209="End"),0))))) ->  | S105: =IF(C105="","",IF(ISNUMBER(SEARCH("Start&End",B105)),SUM(Q105:INDEX(Q105:Q209,MATCH(TRUE,(B105:B209="Start&End"),0))),SUM(Q105:INDEX(Q105:Q209,MATCH(TRUE,(B105:B209="End"),0))))) -> 
A106: 104 | R106: =IF(C106="","",IF(ISNUMBER(SEARCH("Start&End",B106)),SUM(P106:INDEX(P106:P210,MATCH(TRUE,(B106:B210="Start&End"),0))),SUM(P106:INDEX(P106:P210,MATCH(TRUE,(B106:B210="End"),0))))) ->  | S106: =IF(C106="","",IF(ISNUMBER(SEARCH("Start&End",B106)),SUM(Q106:INDEX(Q106:Q210,MATCH(TRUE,(B106:B210="Start&End"),0))),SUM(Q106:INDEX(Q106:Q210,MATCH(TRUE,(B106:B210="End"),0))))) -> 
A107: 105 | R107: =IF(C107="","",IF(ISNUMBER(SEARCH("Start&End",B107)),SUM(P107:INDEX(P107:P211,MATCH(TRUE,(B107:B211="Start&End"),0))),SUM(P107:INDEX(P107:P211,MATCH(TRUE,(B107:B211="End"),0))))) ->  | S107: =IF(C107="","",IF(ISNUMBER(SEARCH("Start&End",B107)),SUM(Q107:INDEX(Q107:Q211,MATCH(TRUE,(B107:B211="Start&End"),0))),SUM(Q107:INDEX(Q107:Q211,MATCH(TRUE,(B107:B211="End"),0))))) -> 
A108: 106 | R108: =IF(C108="","",IF(ISNUMBER(SEARCH("Start&End",B108)),SUM(P108:INDEX(P108:P212,MATCH(TRUE,(B108:B212="Start&End"),0))),SUM(P108:INDEX(P108:P212,MATCH(TRUE,(B108:B212="End"),0))))) ->  | S108: =IF(C108="","",IF(ISNUMBER(SEARCH("Start&End",B108)),SUM(Q108:INDEX(Q108:Q212,MATCH(TRUE,(B108:B212="Start&End"),0))),SUM(Q108:INDEX(Q108:Q212,MATCH(TRUE,(B108:B212="End"),0))))) -> 
A109: 107 | R109: =IF(C109="","",IF(ISNUMBER(SEARCH("Start&End",B109)),SUM(P109:INDEX(P109:P213,MATCH(TRUE,(B109:B213="Start&End"),0))),SUM(P109:INDEX(P109:P213,MATCH(TRUE,(B109:B213="End"),0))))) ->  | S109: =IF(C109="","",IF(ISNUMBER(SEARCH("Start&End",B109)),SUM(Q109:INDEX(Q109:Q213,MATCH(TRUE,(B109:B213="Start&End"),0))),SUM(Q109:INDEX(Q109:Q213,MATCH(TRUE,(B109:B213="End"),0))))) -> 
A110: 108 | R110: =IF(C110="","",IF(ISNUMBER(SEARCH("Start&End",B110)),SUM(P110:INDEX(P110:P214,MATCH(TRUE,(B110:B214="Start&End"),0))),SUM(P110:INDEX(P110:P214,MATCH(TRUE,(B110:B214="End"),0))))) ->  | S110: =IF(C110="","",IF(ISNUMBER(SEARCH("Start&End",B110)),SUM(Q110:INDEX(Q110:Q214,MATCH(TRUE,(B110:B214="Start&End"),0))),SUM(Q110:INDEX(Q110:Q214,MATCH(TRUE,(B110:B214="End"),0))))) -> 
A111: 109 | R111: =IF(C111="","",IF(ISNUMBER(SEARCH("Start&End",B111)),SUM(P111:INDEX(P111:P215,MATCH(TRUE,(B111:B215="Start&End"),0))),SUM(P111:INDEX(P111:P215,MATCH(TRUE,(B111:B215="End"),0))))) ->  | S111: =IF(C111="","",IF(ISNUMBER(SEARCH("Start&End",B111)),SUM(Q111:INDEX(Q111:Q215,MATCH(TRUE,(B111:B215="Start&End"),0))),SUM(Q111:INDEX(Q111:Q215,MATCH(TRUE,(B111:B215="End"),0))))) -> 
A112: 110 | R112: =IF(C112="","",IF(ISNUMBER(SEARCH("Start&End",B112)),SUM(P112:INDEX(P112:P216,MATCH(TRUE,(B112:B216="Start&End"),0))),SUM(P112:INDEX(P112:P216,MATCH(TRUE,(B112:B216="End"),0))))) ->  | S112: =IF(C112="","",IF(ISNUMBER(SEARCH("Start&End",B112)),SUM(Q112:INDEX(Q112:Q216,MATCH(TRUE,(B112:B216="Start&End"),0))),SUM(Q112:INDEX(Q112:Q216,MATCH(TRUE,(B112:B216="End"),0))))) -> 
A113: 111 | R113: =IF(C113="","",IF(ISNUMBER(SEARCH("Start&End",B113)),SUM(P113:INDEX(P113:P217,MATCH(TRUE,(B113:B217="Start&End"),0))),SUM(P113:INDEX(P113:P217,MATCH(TRUE,(B113:B217="End"),0))))) ->  | S113: =IF(C113="","",IF(ISNUMBER(SEARCH("Start&End",B113)),SUM(Q113:INDEX(Q113:Q217,MATCH(TRUE,(B113:B217="Start&End"),0))),SUM(Q113:INDEX(Q113:Q217,MATCH(TRUE,(B113:B217="End"),0))))) -> 
A114: 112 | R114: =IF(C114="","",IF(ISNUMBER(SEARCH("Start&End",B114)),SUM(P114:INDEX(P114:P218,MATCH(TRUE,(B114:B218="Start&End"),0))),SUM(P114:INDEX(P114:P218,MATCH(TRUE,(B114:B218="End"),0))))) ->  | S114: =IF(C114="","",IF(ISNUMBER(SEARCH("Start&End",B114)),SUM(Q114:INDEX(Q114:Q218,MATCH(TRUE,(B114:B218="Start&End"),0))),SUM(Q114:INDEX(Q114:Q218,MATCH(TRUE,(B114:B218="End"),0))))) -> 
A115: 113 | R115: =IF(C115="","",IF(ISNUMBER(SEARCH("Start&End",B115)),SUM(P115:INDEX(P115:P219,MATCH(TRUE,(B115:B219="Start&End"),0))),SUM(P115:INDEX(P115:P219,MATCH(TRUE,(B115:B219="End"),0))))) ->  | S115: =IF(C115="","",IF(ISNUMBER(SEARCH("Start&End",B115)),SUM(Q115:INDEX(Q115:Q219,MATCH(TRUE,(B115:B219="Start&End"),0))),SUM(Q115:INDEX(Q115:Q219,MATCH(TRUE,(B115:B219="End"),0))))) -> 
A116: 114 | R116: =IF(C116="","",IF(ISNUMBER(SEARCH("Start&End",B116)),SUM(P116:INDEX(P116:P220,MATCH(TRUE,(B116:B220="Start&End"),0))),SUM(P116:INDEX(P116:P220,MATCH(TRUE,(B116:B220="End"),0))))) ->  | S116: =IF(C116="","",IF(ISNUMBER(SEARCH("Start&End",B116)),SUM(Q116:INDEX(Q116:Q220,MATCH(TRUE,(B116:B220="Start&End"),0))),SUM(Q116:INDEX(Q116:Q220,MATCH(TRUE,(B116:B220="End"),0))))) -> 
A117: 115 | R117: =IF(C117="","",IF(ISNUMBER(SEARCH("Start&End",B117)),SUM(P117:INDEX(P117:P221,MATCH(TRUE,(B117:B221="Start&End"),0))),SUM(P117:INDEX(P117:P221,MATCH(TRUE,(B117:B221="End"),0))))) ->  | S117: =IF(C117="","",IF(ISNUMBER(SEARCH("Start&End",B117)),SUM(Q117:INDEX(Q117:Q221,MATCH(TRUE,(B117:B221="Start&End"),0))),SUM(Q117:INDEX(Q117:Q221,MATCH(TRUE,(B117:B221="End"),0))))) -> 
A118: 116 | R118: =IF(C118="","",IF(ISNUMBER(SEARCH("Start&End",B118)),SUM(P118:INDEX(P118:P222,MATCH(TRUE,(B118:B222="Start&End"),0))),SUM(P118:INDEX(P118:P222,MATCH(TRUE,(B118:B222="End"),0))))) ->  | S118: =IF(C118="","",IF(ISNUMBER(SEARCH("Start&End",B118)),SUM(Q118:INDEX(Q118:Q222,MATCH(TRUE,(B118:B222="Start&End"),0))),SUM(Q118:INDEX(Q118:Q222,MATCH(TRUE,(B118:B222="End"),0))))) -> 
A119: 117 | R119: =IF(C119="","",IF(ISNUMBER(SEARCH("Start&End",B119)),SUM(P119:INDEX(P119:P223,MATCH(TRUE,(B119:B223="Start&End"),0))),SUM(P119:INDEX(P119:P223,MATCH(TRUE,(B119:B223="End"),0))))) ->  | S119: =IF(C119="","",IF(ISNUMBER(SEARCH("Start&End",B119)),SUM(Q119:INDEX(Q119:Q223,MATCH(TRUE,(B119:B223="Start&End"),0))),SUM(Q119:INDEX(Q119:Q223,MATCH(TRUE,(B119:B223="End"),0))))) -> 
A120: 118 | R120: =IF(C120="","",IF(ISNUMBER(SEARCH("Start&End",B120)),SUM(P120:INDEX(P120:P224,MATCH(TRUE,(B120:B224="Start&End"),0))),SUM(P120:INDEX(P120:P224,MATCH(TRUE,(B120:B224="End"),0))))) ->  | S120: =IF(C120="","",IF(ISNUMBER(SEARCH("Start&End",B120)),SUM(Q120:INDEX(Q120:Q224,MATCH(TRUE,(B120:B224="Start&End"),0))),SUM(Q120:INDEX(Q120:Q224,MATCH(TRUE,(B120:B224="End"),0))))) -> 
A121: 119 | R121: =IF(C121="","",IF(ISNUMBER(SEARCH("Start&End",B121)),SUM(P121:INDEX(P121:P225,MATCH(TRUE,(B121:B225="Start&End"),0))),SUM(P121:INDEX(P121:P225,MATCH(TRUE,(B121:B225="End"),0))))) ->  | S121: =IF(C121="","",IF(ISNUMBER(SEARCH("Start&End",B121)),SUM(Q121:INDEX(Q121:Q225,MATCH(TRUE,(B121:B225="Start&End"),0))),SUM(Q121:INDEX(Q121:Q225,MATCH(TRUE,(B121:B225="End"),0))))) -> 
A122: 120 | R122: =IF(C122="","",IF(ISNUMBER(SEARCH("Start&End",B122)),SUM(P122:INDEX(P122:P226,MATCH(TRUE,(B122:B226="Start&End"),0))),SUM(P122:INDEX(P122:P226,MATCH(TRUE,(B122:B226="End"),0))))) ->  | S122: =IF(C122="","",IF(ISNUMBER(SEARCH("Start&End",B122)),SUM(Q122:INDEX(Q122:Q226,MATCH(TRUE,(B122:B226="Start&End"),0))),SUM(Q122:INDEX(Q122:Q226,MATCH(TRUE,(B122:B226="End"),0))))) -> 
A123: 121 | R123: =IF(C123="","",IF(ISNUMBER(SEARCH("Start&End",B123)),SUM(P123:INDEX(P123:P227,MATCH(TRUE,(B123:B227="Start&End"),0))),SUM(P123:INDEX(P123:P227,MATCH(TRUE,(B123:B227="End"),0))))) ->  | S123: =IF(C123="","",IF(ISNUMBER(SEARCH("Start&End",B123)),SUM(Q123:INDEX(Q123:Q227,MATCH(TRUE,(B123:B227="Start&End"),0))),SUM(Q123:INDEX(Q123:Q227,MATCH(TRUE,(B123:B227="End"),0))))) -> 
A124: 122 | R124: =IF(C124="","",IF(ISNUMBER(SEARCH("Start&End",B124)),SUM(P124:INDEX(P124:P228,MATCH(TRUE,(B124:B228="Start&End"),0))),SUM(P124:INDEX(P124:P228,MATCH(TRUE,(B124:B228="End"),0))))) ->  | S124: =IF(C124="","",IF(ISNUMBER(SEARCH("Start&End",B124)),SUM(Q124:INDEX(Q124:Q228,MATCH(TRUE,(B124:B228="Start&End"),0))),SUM(Q124:INDEX(Q124:Q228,MATCH(TRUE,(B124:B228="End"),0))))) -> 
A125: 123 | R125: =IF(C125="","",IF(ISNUMBER(SEARCH("Start&End",B125)),SUM(P125:INDEX(P125:P229,MATCH(TRUE,(B125:B229="Start&End"),0))),SUM(P125:INDEX(P125:P229,MATCH(TRUE,(B125:B229="End"),0))))) ->  | S125: =IF(C125="","",IF(ISNUMBER(SEARCH("Start&End",B125)),SUM(Q125:INDEX(Q125:Q229,MATCH(TRUE,(B125:B229="Start&End"),0))),SUM(Q125:INDEX(Q125:Q229,MATCH(TRUE,(B125:B229="End"),0))))) -> 
A126: 124 | R126: =IF(C126="","",IF(ISNUMBER(SEARCH("Start&End",B126)),SUM(P126:INDEX(P126:P230,MATCH(TRUE,(B126:B230="Start&End"),0))),SUM(P126:INDEX(P126:P230,MATCH(TRUE,(B126:B230="End"),0))))) ->  | S126: =IF(C126="","",IF(ISNUMBER(SEARCH("Start&End",B126)),SUM(Q126:INDEX(Q126:Q230,MATCH(TRUE,(B126:B230="Start&End"),0))),SUM(Q126:INDEX(Q126:Q230,MATCH(TRUE,(B126:B230="End"),0))))) -> 
A127: 125 | R127: =IF(C127="","",IF(ISNUMBER(SEARCH("Start&End",B127)),SUM(P127:INDEX(P127:P231,MATCH(TRUE,(B127:B231="Start&End"),0))),SUM(P127:INDEX(P127:P231,MATCH(TRUE,(B127:B231="End"),0))))) ->  | S127: =IF(C127="","",IF(ISNUMBER(SEARCH("Start&End",B127)),SUM(Q127:INDEX(Q127:Q231,MATCH(TRUE,(B127:B231="Start&End"),0))),SUM(Q127:INDEX(Q127:Q231,MATCH(TRUE,(B127:B231="End"),0))))) -> 
A128: 126 | R128: =IF(C128="","",IF(ISNUMBER(SEARCH("Start&End",B128)),SUM(P128:INDEX(P128:P232,MATCH(TRUE,(B128:B232="Start&End"),0))),SUM(P128:INDEX(P128:P232,MATCH(TRUE,(B128:B232="End"),0))))) ->  | S128: =IF(C128="","",IF(ISNUMBER(SEARCH("Start&End",B128)),SUM(Q128:INDEX(Q128:Q232,MATCH(TRUE,(B128:B232="Start&End"),0))),SUM(Q128:INDEX(Q128:Q232,MATCH(TRUE,(B128:B232="End"),0))))) -> 
A129: 127 | R129: =IF(C129="","",IF(ISNUMBER(SEARCH("Start&End",B129)),SUM(P129:INDEX(P129:P233,MATCH(TRUE,(B129:B233="Start&End"),0))),SUM(P129:INDEX(P129:P233,MATCH(TRUE,(B129:B233="End"),0))))) ->  | S129: =IF(C129="","",IF(ISNUMBER(SEARCH("Start&End",B129)),SUM(Q129:INDEX(Q129:Q233,MATCH(TRUE,(B129:B233="Start&End"),0))),SUM(Q129:INDEX(Q129:Q233,MATCH(TRUE,(B129:B233="End"),0))))) -> 
A130: 128 | R130: =IF(C130="","",IF(ISNUMBER(SEARCH("Start&End",B130)),SUM(P130:INDEX(P130:P234,MATCH(TRUE,(B130:B234="Start&End"),0))),SUM(P130:INDEX(P130:P234,MATCH(TRUE,(B130:B234="End"),0))))) ->  | S130: =IF(C130="","",IF(ISNUMBER(SEARCH("Start&End",B130)),SUM(Q130:INDEX(Q130:Q234,MATCH(TRUE,(B130:B234="Start&End"),0))),SUM(Q130:INDEX(Q130:Q234,MATCH(TRUE,(B130:B234="End"),0))))) -> 
A131: 129 | Q131: =IF(AA131="","",O131-P131) ->  | R131: =IF(C131="","",IF(ISNUMBER(SEARCH("Start&End",B131)),SUM(P131:INDEX(P131:P235,MATCH(TRUE,(B131:B235="Start&End"),0))),SUM(P131:INDEX(P131:P235,MATCH(TRUE,(B131:B235="End"),0))))) ->  | S131: =IF(C131="","",IF(ISNUMBER(SEARCH("Start&End",B131)),SUM(Q131:INDEX(Q131:Q235,MATCH(TRUE,(B131:B235="Start&End"),0))),SUM(Q131:INDEX(Q131:Q235,MATCH(TRUE,(B131:B235="End"),0))))) ->  | T131: =IF(ISNUMBER(S131),S131,"") ->  | AA131: =IF((H131+I131)*G131=0,"",(H131+I131)*G131) ->  | AB131: =IF(ISNUMBER(SEARCH("FUT",E131)),AZ131,IF(ISNUMBER(SEARCH("OPT",E131)),BH131,IF(ISNUMBER(SEARCH("HOLD",E131)),AJ131,AR131))) ->  | AC131: =IF(ISNUMBER(SEARCH("HOLD",E131)),AK131,IF(ISNUMBER(SEARCH("INTRA",E131)),AS131,IF(ISNUMBER(SEARCH("FUT",E131)),BA131,BI131))) ->  | AD131: =IF(ISNUMBER(SEARCH("HOLD",E131)),AL131,IF(ISNUMBER(SEARCH("INTRA",E131)),AT131,IF(ISNUMBER(SEARCH("FUT",E131)),BB131,BJ131))) ->  | AE131: =IF(ISNUMBER(SEARCH("HOLD",E131)),AM131,IF(ISNUMBER(SEARCH("INTRA",E131)),AU131,IF(ISNUMBER(SEARCH("FUT",E131)),BC131,BK131))) ->  | AF131: =IF(ISNUMBER(SEARCH("HOLD",E131)),AN131,IF(ISNUMBER(SEARCH("INTRA",E131)),AV131,IF(ISNUMBER(SEARCH("FUT",E131)),BD131,BL131))) ->  | AG131: =IF(ISNUMBER(SEARCH("HOLD",E131)),AO131,IF(ISNUMBER(SEARCH("INTRA",E131)),AW131,IF(ISNUMBER(SEARCH("FUT",E131)),BE131,BM131))) ->  | AO131: =IF(G131&H131="","",ROUND(G131*H131*0.00015,2)) ->  | AR131: =IF(MIN(20,((G131*H131*0.0003)))+MIN(20,((G131*H131*0.0003)))=0,"",MIN(20,((G131*H131*0.0003)))+MIN(20,((G131*H131*0.0003)))) ->  | AS131: =IF(I131&G131="","",ROUND(I131*G131*0.00025,0)) ->  | AW131: =IF(G131&H131="","",ROUND(G131*H131*0.00003,2)) ->  | AZ131: =IF(MIN(20,((G131*H131*0.0003)))+MIN(20,((G131*H131*0.0003)))=0,"",MIN(20,((G131*H131*0.0003)))+MIN(20,((G131*H131*0.0003)))) ->  | BA131: =IF(I131&G131="","",ROUND(I131*G131*0.0001,0)) ->  | BE131: =IF(G131&H131="","",ROUND(G131*H131*0.00002,2)) ->  | BH131: =IF(AA131="","",40) ->  | BI131: =IF(I131&G131="","",ROUND(I131*G131*0.0005,0)) ->  | BJ131: =IF(AA131="","",ROUND(AA131*0.00053,2)) ->  | BL131: =IF(AA131="","",ROUND((5/10000000)*AA131,2)) ->  | BM131: =IF(G131&H131="","",ROUND(G131*H131*0.00003,2)) -> 
A132: 130 | M132: =IF(OR(J132="",K132=""),"",IF(F132="Long", ((K132-H132)/(H132-J132)), ((I132-K132)/(J132-I132)) )) ->  | N132: =IF(OR(I132="",D132="",H132="",G132="",E132="",K132=""),"",IF(I132=K132,"Target Achieved",IF(I132=J132,"SL Hit",IF(I132<J132,"Extended SL Hit",IF(I132>K132,"Target Overachieved",IF(AND(I132>=H132,I132<K132),"Early Profit Exit","Early Loss Exit")))))) ->  | O132: =IF(AA132="","",IF(OR(I132="",H132=""),0,G132*(I132-H132))) ->  | P132: =IF(AH132="","",AH132) ->  | R132: =IF(C132="","",IF(ISNUMBER(SEARCH("Start&End",B132)),SUM(P132:INDEX(P132:P236,MATCH(TRUE,(B132:B236="Start&End"),0))),SUM(P132:INDEX(P132:P236,MATCH(TRUE,(B132:B236="End"),0))))) ->  | S132: =IF(C132="","",IF(ISNUMBER(SEARCH("Start&End",B132)),SUM(Q132:INDEX(Q132:Q236,MATCH(TRUE,(B132:B236="Start&End"),0))),SUM(Q132:INDEX(Q132:Q236,MATCH(TRUE,(B132:B236="End"),0))))) ->  | AH132: =IF(AB132&AC132&AD132&AE132&AF132&AG132="","",SUM(AB132:AG132)) ->  | AJ132: =IF(AA132="","",0) ->  | AK132: =IF(AA132="","",ROUND(AA132*0.001,2)) ->  | AL132: =IF(AA132="","",ROUND(AA132*0.0000345,2)) ->  | AM132: =IF(AJ132&AL132="","",ROUND((AJ132+AL132)*0.18,2)) ->  | AN132: =IF(AA132="","",ROUND((5/10000000)*AA132,2)) ->  | AP132: =IF(AK132&AL132&AM132&AN132&AO132="","",SUM(AK132:AO132)) ->  | AT132: =IF(AA132="","",ROUND(AA132*0.0000345,2)) ->  | AU132: =IF(AR132&AT132="","",ROUND((AR132+AT132)*0.18,2)) ->  | AV132: =IF(AA132="","",ROUND((5/10000000)*AA132,2)) ->  | AX132: =IF(AR132&AS132&AT132&AU132&AV132&AW132="","",SUM(AR132:AW132)) ->  | BB132: =IF(AA132="","",ROUND(AA132*0.00002,2)) ->  | BC132: =IF(AZ132&BB132="","",ROUND((AZ132+BB132)*0.18,2)) ->  | BD132: =IF(AA132="","",ROUND((5/10000000)*AA132,2)) ->  | BK132: =IF(BH132&BJ132="","",ROUND((BH132+BJ132)*0.18,2)) ->  | BN132: =IF(BH132&BI132&BJ132&BK132&BL132&BM132="","",SUM(BH132:BM132)) -> 
A133: 131 | R133: =IF(C133="","",IF(ISNUMBER(SEARCH("Start&End",B133)),SUM(P133:INDEX(P133:P237,MATCH(TRUE,(B133:B237="Start&End"),0))),SUM(P133:INDEX(P133:P237,MATCH(TRUE,(B133:B237="End"),0))))) ->  | S133: =IF(C133="","",IF(ISNUMBER(SEARCH("Start&End",B133)),SUM(Q133:INDEX(Q133:Q237,MATCH(TRUE,(B133:B237="Start&End"),0))),SUM(Q133:INDEX(Q133:Q237,MATCH(TRUE,(B133:B237="End"),0))))) ->  | BF133: =IF(FAX133&BA133&BB133&BC133&BD133&BE133="","",SUM(AZ133:BE133)) -> 
A134: 132 | R134: =IF(C134="","",IF(ISNUMBER(SEARCH("Start&End",B134)),SUM(P134:INDEX(P134:P238,MATCH(TRUE,(B134:B238="Start&End"),0))),SUM(P134:INDEX(P134:P238,MATCH(TRUE,(B134:B238="End"),0))))) ->  | S134: =IF(C134="","",IF(ISNUMBER(SEARCH("Start&End",B134)),SUM(Q134:INDEX(Q134:Q238,MATCH(TRUE,(B134:B238="Start&End"),0))),SUM(Q134:INDEX(Q134:Q238,MATCH(TRUE,(B134:B238="End"),0))))) -> 
A135: 133 | R135: =IF(C135="","",IF(ISNUMBER(SEARCH("Start&End",B135)),SUM(P135:INDEX(P135:P239,MATCH(TRUE,(B135:B239="Start&End"),0))),SUM(P135:INDEX(P135:P239,MATCH(TRUE,(B135:B239="End"),0))))) ->  | S135: =IF(C135="","",IF(ISNUMBER(SEARCH("Start&End",B135)),SUM(Q135:INDEX(Q135:Q239,MATCH(TRUE,(B135:B239="Start&End"),0))),SUM(Q135:INDEX(Q135:Q239,MATCH(TRUE,(B135:B239="End"),0))))) -> 
A136: 134 | R136: =IF(C136="","",IF(ISNUMBER(SEARCH("Start&End",B136)),SUM(P136:INDEX(P136:P240,MATCH(TRUE,(B136:B240="Start&End"),0))),SUM(P136:INDEX(P136:P240,MATCH(TRUE,(B136:B240="End"),0))))) ->  | S136: =IF(C136="","",IF(ISNUMBER(SEARCH("Start&End",B136)),SUM(Q136:INDEX(Q136:Q240,MATCH(TRUE,(B136:B240="Start&End"),0))),SUM(Q136:INDEX(Q136:Q240,MATCH(TRUE,(B136:B240="End"),0))))) -> 
A137: 135 | R137: =IF(C137="","",IF(ISNUMBER(SEARCH("Start&End",B137)),SUM(P137:INDEX(P137:P241,MATCH(TRUE,(B137:B241="Start&End"),0))),SUM(P137:INDEX(P137:P241,MATCH(TRUE,(B137:B241="End"),0))))) ->  | S137: =IF(C137="","",IF(ISNUMBER(SEARCH("Start&End",B137)),SUM(Q137:INDEX(Q137:Q241,MATCH(TRUE,(B137:B241="Start&End"),0))),SUM(Q137:INDEX(Q137:Q241,MATCH(TRUE,(B137:B241="End"),0))))) -> 
A138: 136 | R138: =IF(C138="","",IF(ISNUMBER(SEARCH("Start&End",B138)),SUM(P138:INDEX(P138:P242,MATCH(TRUE,(B138:B242="Start&End"),0))),SUM(P138:INDEX(P138:P242,MATCH(TRUE,(B138:B242="End"),0))))) ->  | S138: =IF(C138="","",IF(ISNUMBER(SEARCH("Start&End",B138)),SUM(Q138:INDEX(Q138:Q242,MATCH(TRUE,(B138:B242="Start&End"),0))),SUM(Q138:INDEX(Q138:Q242,MATCH(TRUE,(B138:B242="End"),0))))) -> 
A139: 137 | R139: =IF(C139="","",IF(ISNUMBER(SEARCH("Start&End",B139)),SUM(P139:INDEX(P139:P243,MATCH(TRUE,(B139:B243="Start&End"),0))),SUM(P139:INDEX(P139:P243,MATCH(TRUE,(B139:B243="End"),0))))) ->  | S139: =IF(C139="","",IF(ISNUMBER(SEARCH("Start&End",B139)),SUM(Q139:INDEX(Q139:Q243,MATCH(TRUE,(B139:B243="Start&End"),0))),SUM(Q139:INDEX(Q139:Q243,MATCH(TRUE,(B139:B243="End"),0))))) -> 
A140: 138 | R140: =IF(C140="","",IF(ISNUMBER(SEARCH("Start&End",B140)),SUM(P140:INDEX(P140:P244,MATCH(TRUE,(B140:B244="Start&End"),0))),SUM(P140:INDEX(P140:P244,MATCH(TRUE,(B140:B244="End"),0))))) ->  | S140: =IF(C140="","",IF(ISNUMBER(SEARCH("Start&End",B140)),SUM(Q140:INDEX(Q140:Q244,MATCH(TRUE,(B140:B244="Start&End"),0))),SUM(Q140:INDEX(Q140:Q244,MATCH(TRUE,(B140:B244="End"),0))))) -> 
A141: 139 | R141: =IF(C141="","",IF(ISNUMBER(SEARCH("Start&End",B141)),SUM(P141:INDEX(P141:P245,MATCH(TRUE,(B141:B245="Start&End"),0))),SUM(P141:INDEX(P141:P245,MATCH(TRUE,(B141:B245="End"),0))))) ->  | S141: =IF(C141="","",IF(ISNUMBER(SEARCH("Start&End",B141)),SUM(Q141:INDEX(Q141:Q245,MATCH(TRUE,(B141:B245="Start&End"),0))),SUM(Q141:INDEX(Q141:Q245,MATCH(TRUE,(B141:B245="End"),0))))) -> 
A142: 140 | R142: =IF(C142="","",IF(ISNUMBER(SEARCH("Start&End",B142)),SUM(P142:INDEX(P142:P246,MATCH(TRUE,(B142:B246="Start&End"),0))),SUM(P142:INDEX(P142:P246,MATCH(TRUE,(B142:B246="End"),0))))) ->  | S142: =IF(C142="","",IF(ISNUMBER(SEARCH("Start&End",B142)),SUM(Q142:INDEX(Q142:Q246,MATCH(TRUE,(B142:B246="Start&End"),0))),SUM(Q142:INDEX(Q142:Q246,MATCH(TRUE,(B142:B246="End"),0))))) -> 
A143: 141 | R143: =IF(C143="","",IF(ISNUMBER(SEARCH("Start&End",B143)),SUM(P143:INDEX(P143:P247,MATCH(TRUE,(B143:B247="Start&End"),0))),SUM(P143:INDEX(P143:P247,MATCH(TRUE,(B143:B247="End"),0))))) ->  | S143: =IF(C143="","",IF(ISNUMBER(SEARCH("Start&End",B143)),SUM(Q143:INDEX(Q143:Q247,MATCH(TRUE,(B143:B247="Start&End"),0))),SUM(Q143:INDEX(Q143:Q247,MATCH(TRUE,(B143:B247="End"),0))))) -> 
A144: 142 | R144: =IF(C144="","",IF(ISNUMBER(SEARCH("Start&End",B144)),SUM(P144:INDEX(P144:P248,MATCH(TRUE,(B144:B248="Start&End"),0))),SUM(P144:INDEX(P144:P248,MATCH(TRUE,(B144:B248="End"),0))))) ->  | S144: =IF(C144="","",IF(ISNUMBER(SEARCH("Start&End",B144)),SUM(Q144:INDEX(Q144:Q248,MATCH(TRUE,(B144:B248="Start&End"),0))),SUM(Q144:INDEX(Q144:Q248,MATCH(TRUE,(B144:B248="End"),0))))) -> 
A145: 143 | R145: =IF(C145="","",IF(ISNUMBER(SEARCH("Start&End",B145)),SUM(P145:INDEX(P145:P249,MATCH(TRUE,(B145:B249="Start&End"),0))),SUM(P145:INDEX(P145:P249,MATCH(TRUE,(B145:B249="End"),0))))) ->  | S145: =IF(C145="","",IF(ISNUMBER(SEARCH("Start&End",B145)),SUM(Q145:INDEX(Q145:Q249,MATCH(TRUE,(B145:B249="Start&End"),0))),SUM(Q145:INDEX(Q145:Q249,MATCH(TRUE,(B145:B249="End"),0))))) -> 
A146: 144 | R146: =IF(C146="","",IF(ISNUMBER(SEARCH("Start&End",B146)),SUM(P146:INDEX(P146:P250,MATCH(TRUE,(B146:B250="Start&End"),0))),SUM(P146:INDEX(P146:P250,MATCH(TRUE,(B146:B250="End"),0))))) ->  | S146: =IF(C146="","",IF(ISNUMBER(SEARCH("Start&End",B146)),SUM(Q146:INDEX(Q146:Q250,MATCH(TRUE,(B146:B250="Start&End"),0))),SUM(Q146:INDEX(Q146:Q250,MATCH(TRUE,(B146:B250="End"),0))))) -> 
A147: 145 | R147: =IF(C147="","",IF(ISNUMBER(SEARCH("Start&End",B147)),SUM(P147:INDEX(P147:P251,MATCH(TRUE,(B147:B251="Start&End"),0))),SUM(P147:INDEX(P147:P251,MATCH(TRUE,(B147:B251="End"),0))))) ->  | S147: =IF(C147="","",IF(ISNUMBER(SEARCH("Start&End",B147)),SUM(Q147:INDEX(Q147:Q251,MATCH(TRUE,(B147:B251="Start&End"),0))),SUM(Q147:INDEX(Q147:Q251,MATCH(TRUE,(B147:B251="End"),0))))) -> 
A148: 146 | R148: =IF(C148="","",IF(ISNUMBER(SEARCH("Start&End",B148)),SUM(P148:INDEX(P148:P252,MATCH(TRUE,(B148:B252="Start&End"),0))),SUM(P148:INDEX(P148:P252,MATCH(TRUE,(B148:B252="End"),0))))) ->  | S148: =IF(C148="","",IF(ISNUMBER(SEARCH("Start&End",B148)),SUM(Q148:INDEX(Q148:Q252,MATCH(TRUE,(B148:B252="Start&End"),0))),SUM(Q148:INDEX(Q148:Q252,MATCH(TRUE,(B148:B252="End"),0))))) -> 
A149: 147 | R149: =IF(C149="","",IF(ISNUMBER(SEARCH("Start&End",B149)),SUM(P149:INDEX(P149:P253,MATCH(TRUE,(B149:B253="Start&End"),0))),SUM(P149:INDEX(P149:P253,MATCH(TRUE,(B149:B253="End"),0))))) ->  | S149: =IF(C149="","",IF(ISNUMBER(SEARCH("Start&End",B149)),SUM(Q149:INDEX(Q149:Q253,MATCH(TRUE,(B149:B253="Start&End"),0))),SUM(Q149:INDEX(Q149:Q253,MATCH(TRUE,(B149:B253="End"),0))))) -> 
A150: 148 | R150: =IF(C150="","",IF(ISNUMBER(SEARCH("Start&End",B150)),SUM(P150:INDEX(P150:P254,MATCH(TRUE,(B150:B254="Start&End"),0))),SUM(P150:INDEX(P150:P254,MATCH(TRUE,(B150:B254="End"),0))))) ->  | S150: =IF(C150="","",IF(ISNUMBER(SEARCH("Start&End",B150)),SUM(Q150:INDEX(Q150:Q254,MATCH(TRUE,(B150:B254="Start&End"),0))),SUM(Q150:INDEX(Q150:Q254,MATCH(TRUE,(B150:B254="End"),0))))) -> 
A151: 149 | R151: =IF(C151="","",IF(ISNUMBER(SEARCH("Start&End",B151)),SUM(P151:INDEX(P151:P255,MATCH(TRUE,(B151:B255="Start&End"),0))),SUM(P151:INDEX(P151:P255,MATCH(TRUE,(B151:B255="End"),0))))) ->  | S151: =IF(C151="","",IF(ISNUMBER(SEARCH("Start&End",B151)),SUM(Q151:INDEX(Q151:Q255,MATCH(TRUE,(B151:B255="Start&End"),0))),SUM(Q151:INDEX(Q151:Q255,MATCH(TRUE,(B151:B255="End"),0))))) -> 
A152: 150 | R152: =IF(C152="","",IF(ISNUMBER(SEARCH("Start&End",B152)),SUM(P152:INDEX(P152:P256,MATCH(TRUE,(B152:B256="Start&End"),0))),SUM(P152:INDEX(P152:P256,MATCH(TRUE,(B152:B256="End"),0))))) ->  | S152: =IF(C152="","",IF(ISNUMBER(SEARCH("Start&End",B152)),SUM(Q152:INDEX(Q152:Q256,MATCH(TRUE,(B152:B256="Start&End"),0))),SUM(Q152:INDEX(Q152:Q256,MATCH(TRUE,(B152:B256="End"),0))))) -> 
A153: 151 | R153: =IF(C153="","",IF(ISNUMBER(SEARCH("Start&End",B153)),SUM(P153:INDEX(P153:P257,MATCH(TRUE,(B153:B257="Start&End"),0))),SUM(P153:INDEX(P153:P257,MATCH(TRUE,(B153:B257="End"),0))))) ->  | S153: =IF(C153="","",IF(ISNUMBER(SEARCH("Start&End",B153)),SUM(Q153:INDEX(Q153:Q257,MATCH(TRUE,(B153:B257="Start&End"),0))),SUM(Q153:INDEX(Q153:Q257,MATCH(TRUE,(B153:B257="End"),0))))) -> 
A154: 152 | R154: =IF(C154="","",IF(ISNUMBER(SEARCH("Start&End",B154)),SUM(P154:INDEX(P154:P258,MATCH(TRUE,(B154:B258="Start&End"),0))),SUM(P154:INDEX(P154:P258,MATCH(TRUE,(B154:B258="End"),0))))) ->  | S154: =IF(C154="","",IF(ISNUMBER(SEARCH("Start&End",B154)),SUM(Q154:INDEX(Q154:Q258,MATCH(TRUE,(B154:B258="Start&End"),0))),SUM(Q154:INDEX(Q154:Q258,MATCH(TRUE,(B154:B258="End"),0))))) -> 
A155: 153 | R155: =IF(C155="","",IF(ISNUMBER(SEARCH("Start&End",B155)),SUM(P155:INDEX(P155:P259,MATCH(TRUE,(B155:B259="Start&End"),0))),SUM(P155:INDEX(P155:P259,MATCH(TRUE,(B155:B259="End"),0))))) ->  | S155: =IF(C155="","",IF(ISNUMBER(SEARCH("Start&End",B155)),SUM(Q155:INDEX(Q155:Q259,MATCH(TRUE,(B155:B259="Start&End"),0))),SUM(Q155:INDEX(Q155:Q259,MATCH(TRUE,(B155:B259="End"),0))))) -> 
A156: 154 | R156: =IF(C156="","",IF(ISNUMBER(SEARCH("Start&End",B156)),SUM(P156:INDEX(P156:P260,MATCH(TRUE,(B156:B260="Start&End"),0))),SUM(P156:INDEX(P156:P260,MATCH(TRUE,(B156:B260="End"),0))))) ->  | S156: =IF(C156="","",IF(ISNUMBER(SEARCH("Start&End",B156)),SUM(Q156:INDEX(Q156:Q260,MATCH(TRUE,(B156:B260="Start&End"),0))),SUM(Q156:INDEX(Q156:Q260,MATCH(TRUE,(B156:B260="End"),0))))) -> 
A157: 155 | R157: =IF(C157="","",IF(ISNUMBER(SEARCH("Start&End",B157)),SUM(P157:INDEX(P157:P261,MATCH(TRUE,(B157:B261="Start&End"),0))),SUM(P157:INDEX(P157:P261,MATCH(TRUE,(B157:B261="End"),0))))) ->  | S157: =IF(C157="","",IF(ISNUMBER(SEARCH("Start&End",B157)),SUM(Q157:INDEX(Q157:Q261,MATCH(TRUE,(B157:B261="Start&End"),0))),SUM(Q157:INDEX(Q157:Q261,MATCH(TRUE,(B157:B261="End"),0))))) -> 
A158: 156 | R158: =IF(C158="","",IF(ISNUMBER(SEARCH("Start&End",B158)),SUM(P158:INDEX(P158:P262,MATCH(TRUE,(B158:B262="Start&End"),0))),SUM(P158:INDEX(P158:P262,MATCH(TRUE,(B158:B262="End"),0))))) ->  | S158: =IF(C158="","",IF(ISNUMBER(SEARCH("Start&End",B158)),SUM(Q158:INDEX(Q158:Q262,MATCH(TRUE,(B158:B262="Start&End"),0))),SUM(Q158:INDEX(Q158:Q262,MATCH(TRUE,(B158:B262="End"),0))))) -> 
A159: 157 | R159: =IF(C159="","",IF(ISNUMBER(SEARCH("Start&End",B159)),SUM(P159:INDEX(P159:P263,MATCH(TRUE,(B159:B263="Start&End"),0))),SUM(P159:INDEX(P159:P263,MATCH(TRUE,(B159:B263="End"),0))))) ->  | S159: =IF(C159="","",IF(ISNUMBER(SEARCH("Start&End",B159)),SUM(Q159:INDEX(Q159:Q263,MATCH(TRUE,(B159:B263="Start&End"),0))),SUM(Q159:INDEX(Q159:Q263,MATCH(TRUE,(B159:B263="End"),0))))) -> 
A160: 158 | R160: =IF(C160="","",IF(ISNUMBER(SEARCH("Start&End",B160)),SUM(P160:INDEX(P160:P264,MATCH(TRUE,(B160:B264="Start&End"),0))),SUM(P160:INDEX(P160:P264,MATCH(TRUE,(B160:B264="End"),0))))) ->  | S160: =IF(C160="","",IF(ISNUMBER(SEARCH("Start&End",B160)),SUM(Q160:INDEX(Q160:Q264,MATCH(TRUE,(B160:B264="Start&End"),0))),SUM(Q160:INDEX(Q160:Q264,MATCH(TRUE,(B160:B264="End"),0))))) -> 
A161: 159 | R161: =IF(C161="","",IF(ISNUMBER(SEARCH("Start&End",B161)),SUM(P161:INDEX(P161:P265,MATCH(TRUE,(B161:B265="Start&End"),0))),SUM(P161:INDEX(P161:P265,MATCH(TRUE,(B161:B265="End"),0))))) ->  | S161: =IF(C161="","",IF(ISNUMBER(SEARCH("Start&End",B161)),SUM(Q161:INDEX(Q161:Q265,MATCH(TRUE,(B161:B265="Start&End"),0))),SUM(Q161:INDEX(Q161:Q265,MATCH(TRUE,(B161:B265="End"),0))))) -> 
A162: 160 | R162: =IF(C162="","",IF(ISNUMBER(SEARCH("Start&End",B162)),SUM(P162:INDEX(P162:P266,MATCH(TRUE,(B162:B266="Start&End"),0))),SUM(P162:INDEX(P162:P266,MATCH(TRUE,(B162:B266="End"),0))))) ->  | S162: =IF(C162="","",IF(ISNUMBER(SEARCH("Start&End",B162)),SUM(Q162:INDEX(Q162:Q266,MATCH(TRUE,(B162:B266="Start&End"),0))),SUM(Q162:INDEX(Q162:Q266,MATCH(TRUE,(B162:B266="End"),0))))) -> 
A163: 161 | R163: =IF(C163="","",IF(ISNUMBER(SEARCH("Start&End",B163)),SUM(P163:INDEX(P163:P267,MATCH(TRUE,(B163:B267="Start&End"),0))),SUM(P163:INDEX(P163:P267,MATCH(TRUE,(B163:B267="End"),0))))) ->  | S163: =IF(C163="","",IF(ISNUMBER(SEARCH("Start&End",B163)),SUM(Q163:INDEX(Q163:Q267,MATCH(TRUE,(B163:B267="Start&End"),0))),SUM(Q163:INDEX(Q163:Q267,MATCH(TRUE,(B163:B267="End"),0))))) -> 
A164: 162 | R164: =IF(C164="","",IF(ISNUMBER(SEARCH("Start&End",B164)),SUM(P164:INDEX(P164:P268,MATCH(TRUE,(B164:B268="Start&End"),0))),SUM(P164:INDEX(P164:P268,MATCH(TRUE,(B164:B268="End"),0))))) ->  | S164: =IF(C164="","",IF(ISNUMBER(SEARCH("Start&End",B164)),SUM(Q164:INDEX(Q164:Q268,MATCH(TRUE,(B164:B268="Start&End"),0))),SUM(Q164:INDEX(Q164:Q268,MATCH(TRUE,(B164:B268="End"),0))))) -> 
A165: 163 | R165: =IF(C165="","",IF(ISNUMBER(SEARCH("Start&End",B165)),SUM(P165:INDEX(P165:P269,MATCH(TRUE,(B165:B269="Start&End"),0))),SUM(P165:INDEX(P165:P269,MATCH(TRUE,(B165:B269="End"),0))))) ->  | S165: =IF(C165="","",IF(ISNUMBER(SEARCH("Start&End",B165)),SUM(Q165:INDEX(Q165:Q269,MATCH(TRUE,(B165:B269="Start&End"),0))),SUM(Q165:INDEX(Q165:Q269,MATCH(TRUE,(B165:B269="End"),0))))) -> 
A166: 164 | R166: =IF(C166="","",IF(ISNUMBER(SEARCH("Start&End",B166)),SUM(P166:INDEX(P166:P270,MATCH(TRUE,(B166:B270="Start&End"),0))),SUM(P166:INDEX(P166:P270,MATCH(TRUE,(B166:B270="End"),0))))) ->  | S166: =IF(C166="","",IF(ISNUMBER(SEARCH("Start&End",B166)),SUM(Q166:INDEX(Q166:Q270,MATCH(TRUE,(B166:B270="Start&End"),0))),SUM(Q166:INDEX(Q166:Q270,MATCH(TRUE,(B166:B270="End"),0))))) -> 
A167: 165 | R167: =IF(C167="","",IF(ISNUMBER(SEARCH("Start&End",B167)),SUM(P167:INDEX(P167:P271,MATCH(TRUE,(B167:B271="Start&End"),0))),SUM(P167:INDEX(P167:P271,MATCH(TRUE,(B167:B271="End"),0))))) ->  | S167: =IF(C167="","",IF(ISNUMBER(SEARCH("Start&End",B167)),SUM(Q167:INDEX(Q167:Q271,MATCH(TRUE,(B167:B271="Start&End"),0))),SUM(Q167:INDEX(Q167:Q271,MATCH(TRUE,(B167:B271="End"),0))))) -> 
A168: 166 | R168: =IF(C168="","",IF(ISNUMBER(SEARCH("Start&End",B168)),SUM(P168:INDEX(P168:P272,MATCH(TRUE,(B168:B272="Start&End"),0))),SUM(P168:INDEX(P168:P272,MATCH(TRUE,(B168:B272="End"),0))))) ->  | S168: =IF(C168="","",IF(ISNUMBER(SEARCH("Start&End",B168)),SUM(Q168:INDEX(Q168:Q272,MATCH(TRUE,(B168:B272="Start&End"),0))),SUM(Q168:INDEX(Q168:Q272,MATCH(TRUE,(B168:B272="End"),0))))) -> 
A169: 167 | R169: =IF(C169="","",IF(ISNUMBER(SEARCH("Start&End",B169)),SUM(P169:INDEX(P169:P273,MATCH(TRUE,(B169:B273="Start&End"),0))),SUM(P169:INDEX(P169:P273,MATCH(TRUE,(B169:B273="End"),0))))) ->  | S169: =IF(C169="","",IF(ISNUMBER(SEARCH("Start&End",B169)),SUM(Q169:INDEX(Q169:Q273,MATCH(TRUE,(B169:B273="Start&End"),0))),SUM(Q169:INDEX(Q169:Q273,MATCH(TRUE,(B169:B273="End"),0))))) -> 
A170: 168 | R170: =IF(C170="","",IF(ISNUMBER(SEARCH("Start&End",B170)),SUM(P170:INDEX(P170:P274,MATCH(TRUE,(B170:B274="Start&End"),0))),SUM(P170:INDEX(P170:P274,MATCH(TRUE,(B170:B274="End"),0))))) ->  | S170: =IF(C170="","",IF(ISNUMBER(SEARCH("Start&End",B170)),SUM(Q170:INDEX(Q170:Q274,MATCH(TRUE,(B170:B274="Start&End"),0))),SUM(Q170:INDEX(Q170:Q274,MATCH(TRUE,(B170:B274="End"),0))))) -> 
A171: 169 | R171: =IF(C171="","",IF(ISNUMBER(SEARCH("Start&End",B171)),SUM(P171:INDEX(P171:P275,MATCH(TRUE,(B171:B275="Start&End"),0))),SUM(P171:INDEX(P171:P275,MATCH(TRUE,(B171:B275="End"),0))))) ->  | S171: =IF(C171="","",IF(ISNUMBER(SEARCH("Start&End",B171)),SUM(Q171:INDEX(Q171:Q275,MATCH(TRUE,(B171:B275="Start&End"),0))),SUM(Q171:INDEX(Q171:Q275,MATCH(TRUE,(B171:B275="End"),0))))) -> 
A172: 170 | R172: =IF(C172="","",IF(ISNUMBER(SEARCH("Start&End",B172)),SUM(P172:INDEX(P172:P276,MATCH(TRUE,(B172:B276="Start&End"),0))),SUM(P172:INDEX(P172:P276,MATCH(TRUE,(B172:B276="End"),0))))) ->  | S172: =IF(C172="","",IF(ISNUMBER(SEARCH("Start&End",B172)),SUM(Q172:INDEX(Q172:Q276,MATCH(TRUE,(B172:B276="Start&End"),0))),SUM(Q172:INDEX(Q172:Q276,MATCH(TRUE,(B172:B276="End"),0))))) -> 
A173: 171 | R173: =IF(C173="","",IF(ISNUMBER(SEARCH("Start&End",B173)),SUM(P173:INDEX(P173:P277,MATCH(TRUE,(B173:B277="Start&End"),0))),SUM(P173:INDEX(P173:P277,MATCH(TRUE,(B173:B277="End"),0))))) ->  | S173: =IF(C173="","",IF(ISNUMBER(SEARCH("Start&End",B173)),SUM(Q173:INDEX(Q173:Q277,MATCH(TRUE,(B173:B277="Start&End"),0))),SUM(Q173:INDEX(Q173:Q277,MATCH(TRUE,(B173:B277="End"),0))))) -> 
A174: 172 | R174: =IF(C174="","",IF(ISNUMBER(SEARCH("Start&End",B174)),SUM(P174:INDEX(P174:P278,MATCH(TRUE,(B174:B278="Start&End"),0))),SUM(P174:INDEX(P174:P278,MATCH(TRUE,(B174:B278="End"),0))))) ->  | S174: =IF(C174="","",IF(ISNUMBER(SEARCH("Start&End",B174)),SUM(Q174:INDEX(Q174:Q278,MATCH(TRUE,(B174:B278="Start&End"),0))),SUM(Q174:INDEX(Q174:Q278,MATCH(TRUE,(B174:B278="End"),0))))) -> 
A175: 173 | R175: =IF(C175="","",IF(ISNUMBER(SEARCH("Start&End",B175)),SUM(P175:INDEX(P175:P279,MATCH(TRUE,(B175:B279="Start&End"),0))),SUM(P175:INDEX(P175:P279,MATCH(TRUE,(B175:B279="End"),0))))) ->  | S175: =IF(C175="","",IF(ISNUMBER(SEARCH("Start&End",B175)),SUM(Q175:INDEX(Q175:Q279,MATCH(TRUE,(B175:B279="Start&End"),0))),SUM(Q175:INDEX(Q175:Q279,MATCH(TRUE,(B175:B279="End"),0))))) -> 
A176: 174 | R176: =IF(C176="","",IF(ISNUMBER(SEARCH("Start&End",B176)),SUM(P176:INDEX(P176:P280,MATCH(TRUE,(B176:B280="Start&End"),0))),SUM(P176:INDEX(P176:P280,MATCH(TRUE,(B176:B280="End"),0))))) ->  | S176: =IF(C176="","",IF(ISNUMBER(SEARCH("Start&End",B176)),SUM(Q176:INDEX(Q176:Q280,MATCH(TRUE,(B176:B280="Start&End"),0))),SUM(Q176:INDEX(Q176:Q280,MATCH(TRUE,(B176:B280="End"),0))))) -> 
A177: 175 | R177: =IF(C177="","",IF(ISNUMBER(SEARCH("Start&End",B177)),SUM(P177:INDEX(P177:P281,MATCH(TRUE,(B177:B281="Start&End"),0))),SUM(P177:INDEX(P177:P281,MATCH(TRUE,(B177:B281="End"),0))))) ->  | S177: =IF(C177="","",IF(ISNUMBER(SEARCH("Start&End",B177)),SUM(Q177:INDEX(Q177:Q281,MATCH(TRUE,(B177:B281="Start&End"),0))),SUM(Q177:INDEX(Q177:Q281,MATCH(TRUE,(B177:B281="End"),0))))) -> 
A178: 176 | R178: =IF(C178="","",IF(ISNUMBER(SEARCH("Start&End",B178)),SUM(P178:INDEX(P178:P282,MATCH(TRUE,(B178:B282="Start&End"),0))),SUM(P178:INDEX(P178:P282,MATCH(TRUE,(B178:B282="End"),0))))) ->  | S178: =IF(C178="","",IF(ISNUMBER(SEARCH("Start&End",B178)),SUM(Q178:INDEX(Q178:Q282,MATCH(TRUE,(B178:B282="Start&End"),0))),SUM(Q178:INDEX(Q178:Q282,MATCH(TRUE,(B178:B282="End"),0))))) -> 
A179: 177 | R179: =IF(C179="","",IF(ISNUMBER(SEARCH("Start&End",B179)),SUM(P179:INDEX(P179:P283,MATCH(TRUE,(B179:B283="Start&End"),0))),SUM(P179:INDEX(P179:P283,MATCH(TRUE,(B179:B283="End"),0))))) ->  | S179: =IF(C179="","",IF(ISNUMBER(SEARCH("Start&End",B179)),SUM(Q179:INDEX(Q179:Q283,MATCH(TRUE,(B179:B283="Start&End"),0))),SUM(Q179:INDEX(Q179:Q283,MATCH(TRUE,(B179:B283="End"),0))))) -> 
A180: 178 | R180: =IF(C180="","",IF(ISNUMBER(SEARCH("Start&End",B180)),SUM(P180:INDEX(P180:P284,MATCH(TRUE,(B180:B284="Start&End"),0))),SUM(P180:INDEX(P180:P284,MATCH(TRUE,(B180:B284="End"),0))))) ->  | S180: =IF(C180="","",IF(ISNUMBER(SEARCH("Start&End",B180)),SUM(Q180:INDEX(Q180:Q284,MATCH(TRUE,(B180:B284="Start&End"),0))),SUM(Q180:INDEX(Q180:Q284,MATCH(TRUE,(B180:B284="End"),0))))) -> 
A181: 179 | R181: =IF(C181="","",IF(ISNUMBER(SEARCH("Start&End",B181)),SUM(P181:INDEX(P181:P285,MATCH(TRUE,(B181:B285="Start&End"),0))),SUM(P181:INDEX(P181:P285,MATCH(TRUE,(B181:B285="End"),0))))) ->  | S181: =IF(C181="","",IF(ISNUMBER(SEARCH("Start&End",B181)),SUM(Q181:INDEX(Q181:Q285,MATCH(TRUE,(B181:B285="Start&End"),0))),SUM(Q181:INDEX(Q181:Q285,MATCH(TRUE,(B181:B285="End"),0))))) -> 
A182: 180 | R182: =IF(C182="","",IF(ISNUMBER(SEARCH("Start&End",B182)),SUM(P182:INDEX(P182:P286,MATCH(TRUE,(B182:B286="Start&End"),0))),SUM(P182:INDEX(P182:P286,MATCH(TRUE,(B182:B286="End"),0))))) ->  | S182: =IF(C182="","",IF(ISNUMBER(SEARCH("Start&End",B182)),SUM(Q182:INDEX(Q182:Q286,MATCH(TRUE,(B182:B286="Start&End"),0))),SUM(Q182:INDEX(Q182:Q286,MATCH(TRUE,(B182:B286="End"),0))))) -> 
A183: 181 | R183: =IF(C183="","",IF(ISNUMBER(SEARCH("Start&End",B183)),SUM(P183:INDEX(P183:P287,MATCH(TRUE,(B183:B287="Start&End"),0))),SUM(P183:INDEX(P183:P287,MATCH(TRUE,(B183:B287="End"),0))))) ->  | S183: =IF(C183="","",IF(ISNUMBER(SEARCH("Start&End",B183)),SUM(Q183:INDEX(Q183:Q287,MATCH(TRUE,(B183:B287="Start&End"),0))),SUM(Q183:INDEX(Q183:Q287,MATCH(TRUE,(B183:B287="End"),0))))) -> 
A184: 182 | R184: =IF(C184="","",IF(ISNUMBER(SEARCH("Start&End",B184)),SUM(P184:INDEX(P184:P288,MATCH(TRUE,(B184:B288="Start&End"),0))),SUM(P184:INDEX(P184:P288,MATCH(TRUE,(B184:B288="End"),0))))) ->  | S184: =IF(C184="","",IF(ISNUMBER(SEARCH("Start&End",B184)),SUM(Q184:INDEX(Q184:Q288,MATCH(TRUE,(B184:B288="Start&End"),0))),SUM(Q184:INDEX(Q184:Q288,MATCH(TRUE,(B184:B288="End"),0))))) -> 
A185: 183 | R185: =IF(C185="","",IF(ISNUMBER(SEARCH("Start&End",B185)),SUM(P185:INDEX(P185:P289,MATCH(TRUE,(B185:B289="Start&End"),0))),SUM(P185:INDEX(P185:P289,MATCH(TRUE,(B185:B289="End"),0))))) ->  | S185: =IF(C185="","",IF(ISNUMBER(SEARCH("Start&End",B185)),SUM(Q185:INDEX(Q185:Q289,MATCH(TRUE,(B185:B289="Start&End"),0))),SUM(Q185:INDEX(Q185:Q289,MATCH(TRUE,(B185:B289="End"),0))))) -> 
A186: 184 | R186: =IF(C186="","",IF(ISNUMBER(SEARCH("Start&End",B186)),SUM(P186:INDEX(P186:P290,MATCH(TRUE,(B186:B290="Start&End"),0))),SUM(P186:INDEX(P186:P290,MATCH(TRUE,(B186:B290="End"),0))))) ->  | S186: =IF(C186="","",IF(ISNUMBER(SEARCH("Start&End",B186)),SUM(Q186:INDEX(Q186:Q290,MATCH(TRUE,(B186:B290="Start&End"),0))),SUM(Q186:INDEX(Q186:Q290,MATCH(TRUE,(B186:B290="End"),0))))) -> 
A187: 185 | R187: =IF(C187="","",IF(ISNUMBER(SEARCH("Start&End",B187)),SUM(P187:INDEX(P187:P291,MATCH(TRUE,(B187:B291="Start&End"),0))),SUM(P187:INDEX(P187:P291,MATCH(TRUE,(B187:B291="End"),0))))) ->  | S187: =IF(C187="","",IF(ISNUMBER(SEARCH("Start&End",B187)),SUM(Q187:INDEX(Q187:Q291,MATCH(TRUE,(B187:B291="Start&End"),0))),SUM(Q187:INDEX(Q187:Q291,MATCH(TRUE,(B187:B291="End"),0))))) -> 
A188: 186 | R188: =IF(C188="","",IF(ISNUMBER(SEARCH("Start&End",B188)),SUM(P188:INDEX(P188:P292,MATCH(TRUE,(B188:B292="Start&End"),0))),SUM(P188:INDEX(P188:P292,MATCH(TRUE,(B188:B292="End"),0))))) ->  | S188: =IF(C188="","",IF(ISNUMBER(SEARCH("Start&End",B188)),SUM(Q188:INDEX(Q188:Q292,MATCH(TRUE,(B188:B292="Start&End"),0))),SUM(Q188:INDEX(Q188:Q292,MATCH(TRUE,(B188:B292="End"),0))))) -> 
A189: 187 | R189: =IF(C189="","",IF(ISNUMBER(SEARCH("Start&End",B189)),SUM(P189:INDEX(P189:P293,MATCH(TRUE,(B189:B293="Start&End"),0))),SUM(P189:INDEX(P189:P293,MATCH(TRUE,(B189:B293="End"),0))))) ->  | S189: =IF(C189="","",IF(ISNUMBER(SEARCH("Start&End",B189)),SUM(Q189:INDEX(Q189:Q293,MATCH(TRUE,(B189:B293="Start&End"),0))),SUM(Q189:INDEX(Q189:Q293,MATCH(TRUE,(B189:B293="End"),0))))) -> 
A190: 188 | R190: =IF(C190="","",IF(ISNUMBER(SEARCH("Start&End",B190)),SUM(P190:INDEX(P190:P294,MATCH(TRUE,(B190:B294="Start&End"),0))),SUM(P190:INDEX(P190:P294,MATCH(TRUE,(B190:B294="End"),0))))) ->  | S190: =IF(C190="","",IF(ISNUMBER(SEARCH("Start&End",B190)),SUM(Q190:INDEX(Q190:Q294,MATCH(TRUE,(B190:B294="Start&End"),0))),SUM(Q190:INDEX(Q190:Q294,MATCH(TRUE,(B190:B294="End"),0))))) -> 
A191: 189 | R191: =IF(C191="","",IF(ISNUMBER(SEARCH("Start&End",B191)),SUM(P191:INDEX(P191:P295,MATCH(TRUE,(B191:B295="Start&End"),0))),SUM(P191:INDEX(P191:P295,MATCH(TRUE,(B191:B295="End"),0))))) ->  | S191: =IF(C191="","",IF(ISNUMBER(SEARCH("Start&End",B191)),SUM(Q191:INDEX(Q191:Q295,MATCH(TRUE,(B191:B295="Start&End"),0))),SUM(Q191:INDEX(Q191:Q295,MATCH(TRUE,(B191:B295="End"),0))))) -> 
A192: 190 | R192: =IF(C192="","",IF(ISNUMBER(SEARCH("Start&End",B192)),SUM(P192:INDEX(P192:P296,MATCH(TRUE,(B192:B296="Start&End"),0))),SUM(P192:INDEX(P192:P296,MATCH(TRUE,(B192:B296="End"),0))))) ->  | S192: =IF(C192="","",IF(ISNUMBER(SEARCH("Start&End",B192)),SUM(Q192:INDEX(Q192:Q296,MATCH(TRUE,(B192:B296="Start&End"),0))),SUM(Q192:INDEX(Q192:Q296,MATCH(TRUE,(B192:B296="End"),0))))) -> 
A193: 191 | R193: =IF(C193="","",IF(ISNUMBER(SEARCH("Start&End",B193)),SUM(P193:INDEX(P193:P297,MATCH(TRUE,(B193:B297="Start&End"),0))),SUM(P193:INDEX(P193:P297,MATCH(TRUE,(B193:B297="End"),0))))) ->  | S193: =IF(C193="","",IF(ISNUMBER(SEARCH("Start&End",B193)),SUM(Q193:INDEX(Q193:Q297,MATCH(TRUE,(B193:B297="Start&End"),0))),SUM(Q193:INDEX(Q193:Q297,MATCH(TRUE,(B193:B297="End"),0))))) -> 
A194: 192 | R194: =IF(C194="","",IF(ISNUMBER(SEARCH("Start&End",B194)),SUM(P194:INDEX(P194:P298,MATCH(TRUE,(B194:B298="Start&End"),0))),SUM(P194:INDEX(P194:P298,MATCH(TRUE,(B194:B298="End"),0))))) ->  | S194: =IF(C194="","",IF(ISNUMBER(SEARCH("Start&End",B194)),SUM(Q194:INDEX(Q194:Q298,MATCH(TRUE,(B194:B298="Start&End"),0))),SUM(Q194:INDEX(Q194:Q298,MATCH(TRUE,(B194:B298="End"),0))))) -> 
A195: 193 | Q195: =IF(AA195="","",O195-P195) ->  | R195: =IF(C195="","",IF(ISNUMBER(SEARCH("Start&End",B195)),SUM(P195:INDEX(P195:P299,MATCH(TRUE,(B195:B299="Start&End"),0))),SUM(P195:INDEX(P195:P299,MATCH(TRUE,(B195:B299="End"),0))))) ->  | S195: =IF(C195="","",IF(ISNUMBER(SEARCH("Start&End",B195)),SUM(Q195:INDEX(Q195:Q299,MATCH(TRUE,(B195:B299="Start&End"),0))),SUM(Q195:INDEX(Q195:Q299,MATCH(TRUE,(B195:B299="End"),0))))) ->  | T195: =IF(ISNUMBER(S195),S195,"") ->  | AA195: =IF((H195+I195)*G195=0,"",(H195+I195)*G195) ->  | AB195: =IF(ISNUMBER(SEARCH("FUT",E195)),AZ195,IF(ISNUMBER(SEARCH("OPT",E195)),BH195,IF(ISNUMBER(SEARCH("HOLD",E195)),AJ195,AR195))) ->  | AC195: =IF(ISNUMBER(SEARCH("HOLD",E195)),AK195,IF(ISNUMBER(SEARCH("INTRA",E195)),AS195,IF(ISNUMBER(SEARCH("FUT",E195)),BA195,BI195))) ->  | AD195: =IF(ISNUMBER(SEARCH("HOLD",E195)),AL195,IF(ISNUMBER(SEARCH("INTRA",E195)),AT195,IF(ISNUMBER(SEARCH("FUT",E195)),BB195,BJ195))) ->  | AE195: =IF(ISNUMBER(SEARCH("HOLD",E195)),AM195,IF(ISNUMBER(SEARCH("INTRA",E195)),AU195,IF(ISNUMBER(SEARCH("FUT",E195)),BC195,BK195))) ->  | AF195: =IF(ISNUMBER(SEARCH("HOLD",E195)),AN195,IF(ISNUMBER(SEARCH("INTRA",E195)),AV195,IF(ISNUMBER(SEARCH("FUT",E195)),BD195,BL195))) ->  | AG195: =IF(ISNUMBER(SEARCH("HOLD",E195)),AO195,IF(ISNUMBER(SEARCH("INTRA",E195)),AW195,IF(ISNUMBER(SEARCH("FUT",E195)),BE195,BM195))) ->  | AO195: =IF(G195&H195="","",ROUND(G195*H195*0.00015,2)) ->  | AR195: =IF(MIN(20,((G195*H195*0.0003)))+MIN(20,((G195*H195*0.0003)))=0,"",MIN(20,((G195*H195*0.0003)))+MIN(20,((G195*H195*0.0003)))) ->  | AS195: =IF(I195&G195="","",ROUND(I195*G195*0.00025,0)) ->  | AW195: =IF(G195&H195="","",ROUND(G195*H195*0.00003,2)) ->  | AZ195: =IF(MIN(20,((G195*H195*0.0003)))+MIN(20,((G195*H195*0.0003)))=0,"",MIN(20,((G195*H195*0.0003)))+MIN(20,((G195*H195*0.0003)))) ->  | BA195: =IF(I195&G195="","",ROUND(I195*G195*0.0001,0)) ->  | BE195: =IF(G195&H195="","",ROUND(G195*H195*0.00002,2)) ->  | BH195: =IF(AA195="","",40) ->  | BI195: =IF(I195&G195="","",ROUND(I195*G195*0.0005,0)) ->  | BJ195: =IF(AA195="","",ROUND(AA195*0.00053,2)) ->  | BL195: =IF(AA195="","",ROUND((5/10000000)*AA195,2)) ->  | BM195: =IF(G195&H195="","",ROUND(G195*H195*0.00003,2)) -> 
A196: 194 | M196: =IF(OR(J196="",K196=""),"",IF(F196="Long", ((K196-H196)/(H196-J196)), ((I196-K196)/(J196-I196)) )) ->  | N196: =IF(OR(I196="",D196="",H196="",G196="",E196="",K196=""),"",IF(I196=K196,"Target Achieved",IF(I196=J196,"SL Hit",IF(I196<J196,"Extended SL Hit",IF(I196>K196,"Target Overachieved",IF(AND(I196>=H196,I196<K196),"Early Profit Exit","Early Loss Exit")))))) ->  | O196: =IF(AA196="","",IF(OR(I196="",H196=""),0,G196*(I196-H196))) ->  | P196: =IF(AH196="","",AH196) ->  | R196: =IF(C196="","",IF(ISNUMBER(SEARCH("Start&End",B196)),SUM(P196:INDEX(P196:P300,MATCH(TRUE,(B196:B300="Start&End"),0))),SUM(P196:INDEX(P196:P300,MATCH(TRUE,(B196:B300="End"),0))))) ->  | S196: =IF(C196="","",IF(ISNUMBER(SEARCH("Start&End",B196)),SUM(Q196:INDEX(Q196:Q300,MATCH(TRUE,(B196:B300="Start&End"),0))),SUM(Q196:INDEX(Q196:Q300,MATCH(TRUE,(B196:B300="End"),0))))) ->  | AH196: =IF(AB196&AC196&AD196&AE196&AF196&AG196="","",SUM(AB196:AG196)) ->  | AJ196: =IF(AA196="","",0) ->  | AK196: =IF(AA196="","",ROUND(AA196*0.001,2)) ->  | AL196: =IF(AA196="","",ROUND(AA196*0.0000345,2)) ->  | AM196: =IF(AJ196&AL196="","",ROUND((AJ196+AL196)*0.18,2)) ->  | AN196: =IF(AA196="","",ROUND((5/10000000)*AA196,2)) ->  | AP196: =IF(AK196&AL196&AM196&AN196&AO196="","",SUM(AK196:AO196)) ->  | AT196: =IF(AA196="","",ROUND(AA196*0.0000345,2)) ->  | AU196: =IF(AR196&AT196="","",ROUND((AR196+AT196)*0.18,2)) ->  | AV196: =IF(AA196="","",ROUND((5/10000000)*AA196,2)) ->  | AX196: =IF(AR196&AS196&AT196&AU196&AV196&AW196="","",SUM(AR196:AW196)) ->  | BB196: =IF(AA196="","",ROUND(AA196*0.00002,2)) ->  | BC196: =IF(AZ196&BB196="","",ROUND((AZ196+BB196)*0.18,2)) ->  | BD196: =IF(AA196="","",ROUND((5/10000000)*AA196,2)) ->  | BK196: =IF(BH196&BJ196="","",ROUND((BH196+BJ196)*0.18,2)) ->  | BN196: =IF(BH196&BI196&BJ196&BK196&BL196&BM196="","",SUM(BH196:BM196)) -> 
A197: 195 | R197: =IF(C197="","",IF(ISNUMBER(SEARCH("Start&End",B197)),SUM(P197:INDEX(P197:P301,MATCH(TRUE,(B197:B301="Start&End"),0))),SUM(P197:INDEX(P197:P301,MATCH(TRUE,(B197:B301="End"),0))))) ->  | S197: =IF(C197="","",IF(ISNUMBER(SEARCH("Start&End",B197)),SUM(Q197:INDEX(Q197:Q301,MATCH(TRUE,(B197:B301="Start&End"),0))),SUM(Q197:INDEX(Q197:Q301,MATCH(TRUE,(B197:B301="End"),0))))) ->  | BF197: =IF(FAX197&BA197&BB197&BC197&BD197&BE197="","",SUM(AZ197:BE197)) -> 
A198: 196 | R198: =IF(C198="","",IF(ISNUMBER(SEARCH("Start&End",B198)),SUM(P198:INDEX(P198:P302,MATCH(TRUE,(B198:B302="Start&End"),0))),SUM(P198:INDEX(P198:P302,MATCH(TRUE,(B198:B302="End"),0))))) ->  | S198: =IF(C198="","",IF(ISNUMBER(SEARCH("Start&End",B198)),SUM(Q198:INDEX(Q198:Q302,MATCH(TRUE,(B198:B302="Start&End"),0))),SUM(Q198:INDEX(Q198:Q302,MATCH(TRUE,(B198:B302="End"),0))))) -> 
A199: 197 | R199: =IF(C199="","",IF(ISNUMBER(SEARCH("Start&End",B199)),SUM(P199:INDEX(P199:P303,MATCH(TRUE,(B199:B303="Start&End"),0))),SUM(P199:INDEX(P199:P303,MATCH(TRUE,(B199:B303="End"),0))))) ->  | S199: =IF(C199="","",IF(ISNUMBER(SEARCH("Start&End",B199)),SUM(Q199:INDEX(Q199:Q303,MATCH(TRUE,(B199:B303="Start&End"),0))),SUM(Q199:INDEX(Q199:Q303,MATCH(TRUE,(B199:B303="End"),0))))) -> 
A200: 198 | R200: =IF(C200="","",IF(ISNUMBER(SEARCH("Start&End",B200)),SUM(P200:INDEX(P200:P304,MATCH(TRUE,(B200:B304="Start&End"),0))),SUM(P200:INDEX(P200:P304,MATCH(TRUE,(B200:B304="End"),0))))) ->  | S200: =IF(C200="","",IF(ISNUMBER(SEARCH("Start&End",B200)),SUM(Q200:INDEX(Q200:Q304,MATCH(TRUE,(B200:B304="Start&End"),0))),SUM(Q200:INDEX(Q200:Q304,MATCH(TRUE,(B200:B304="End"),0))))) -> 
... 302 more rows

Sheet Dashboard
B2: PERFORMANCE DASHBOARD
C7: Sr.no | D7: METRICS | G7: Winning Rate/Trade | K7: Losing Rate/Trade | O7: P&L/Trade Ratio | S7: Max Profit Daywise
C9: 1 | D9: Net Profit/Loss | E9: ='Trading Zone'!W3 -> 51.47 | G9: =E13/E12 -> 1 | K9: =E14/E12 -> 0 | O9: =IF((E13+E14)>0,E9/(E13+E14),0) -> 51.47 | S9: =IF(_xlfn.AGGREGATE(4,6,'Trading Zone'!S:S)>0,_xlfn.AGGREGATE(4,6,'Trading Zone'!S:S),"No Profit") -> No Profit
C10: 2 | D10: Max Profitable Trade | E10: =IF(MAX('Trading Zone'!Q:Q)>0,MAX('Trading Zone'!Q:Q),"No Profit") -> 51.47
C11: 3 | D11: Max Losing trade | E11: =IF(MIN('Trading Zone'!Q:Q)<0,MIN('Trading Zone'!Q:Q),"No Loss") -> No Loss
C12: 4 | D12: Total Trades | E12: =COUNT('Trading Zone'!D3:D500) -> 1
C13: 5 | D13: Total Winning Trades | E13: =COUNTIF('Trading Zone'!Q3:Q502,">0") -> 1 | G13: Winning Rate/Day | K13: Losing Rate/Day | O13: P&L/Day Ratio | S13: Max Loss Daywise
C14: 6 | D14: Total Losing Trades | E14: =COUNTIF('Trading Zone'!Q3:Q502,"<0") -> 0
C15: 7 | D15: Pending Trades | E15: =E12-E13-E14 -> 0 | G15: =E19/E18 -> 0 | K15: =E20/E18 -> 0 | O15: =IF((E19+E20)>0,E9/(E19+E20),0) -> 0 | S15: =IF(_xlfn.AGGREGATE(5,6,'Trading Zone'!S:S)<0,_xlfn.AGGREGATE(5,6,'Trading Zone'!S:S),"No Loss") -> No Loss
C16: 8 | D16: Total Turnover | E16: =SUM('Trading Zone'!AA3:AA502) -> 501
C17: 9 | D17: Total Brokerage | E17: ='Trading Zone'!V3 -> 47.53
C18: 10 | D18: Total Trading Days | E18: =COUNT('Trading Zone'!C3:C502) -> 1
C19: 11 | D19: Total Winning Days | E19: =COUNTIF('Trading Zone'!S3:S502,">0") -> 0 | G19: Invested Capital | K19: Current Capital | O19: Total Withdrawal | S19: Total Funds Added
C20: 12 | D20: Total Losing Days | E20: =COUNTIF('Trading Zone'!S3:S502,"<0") -> 0
G21: ='Trading Zone'!X3 -> 15000 | K21: ='Trading Zone'!Y3 -> 15051.47 | O21: =SUM('Trading Zone'!Y7:Y502) -> 0 | S21: =SUM('Trading Zone'!W7:W502) -> 15000

Sheet Goals & Target
B2: TIME AND TARGET
B5: =NOW() -> 2021-04-22T05:56:25.690
C6: Invested Capital | G6: Target Capital | K6: Target Capital (%) | O6: Pending Target (%)
C8: ='Trading Zone'!X3 -> 15000 | G8: 300000 | K8: =G8/C8*100-100 -> 1900 | O8: =G8/C15*100-100 -> 1893.160801
C13: Current Capital | G13: Target Progress | K13: Current Returns (%) | O13: Pending Target Capt.
B15: D | C15: ='Trading Zone'!Y3 -> 15051.47 | G15: ='Trading Zone'!W3 -> 51.47 | K15: =C15/C8*100-100 -> 0.3431333333 | O15: =G8-C15 -> 284948.53
G20: Trading Time | K20: Return per day(%)
G22: =DATEDIF('Trading Zone'!C3,NOW(),"D")+1 -> 15 | K22: =(C15/C8*100-100)/G22 -> 0.02287555556

Sheet Option Writing Plan
A1: No of Lots | B1: BNF Quantity | C1: Nifty Quantity | D1: Weekly profit | E1: Capital size | F1: Next Lot Time in weeks | G1: Time Spent | H1: Profit | I1: Revised Cap | J1: Return/ week | K1: Return/Lot | L1: Final % | M1: Brokerage | N1: Progress | O1: Goal Status
A2: =ROUNDDOWN(E2/90000,0) -> 1 | B2: =A2*25 -> 25 | C2: =A2*75 -> 75 | D2: 10000 | E2: 93774.74 | F2: =ROUNDUP(90000/D2,0) -> 9 | G2: =F2 -> 9 | H2: =D2*F2 -> 90000 | I2: =H2+E2 -> 183774.74 | J2: =D2/E2*100 -> 10.66385255 | K2: =H2/E2*100 -> 95.97467292 | L2: =I2/90000*100-100 -> 104.1941556 | M2: =40+A2*24 -> 64 | N2: 0 | O2: =IF(N2>H2,"Completed","Pending") -> Pending
A3: =ROUNDDOWN(E3/90000,0) -> 2 | B3: =A3*25 -> 50 | C3: =A3*75 -> 150 | D3: =A3*10000 -> 20000 | E3: =I2 -> 183774.74 | F3: =ROUNDUP(90000/D3,0) -> 5 | G3: =G2+F3 -> 14 | H3: =D3*F3 -> 100000 | I3: =H3+E3 -> 283774.74 | J3: =D3/E3*100 -> 10.88288848 | K3: =H3/E3*100 -> 54.41444238 | L3: =I3/90000*100-100 -> 215.3052667 | M3: =40+A3*24 -> 88 | O3: =IF(N3>H3,"Completed","Pending") -> Pending
A4: 3 | B4: 75 | C4: 225 | D4: =A4*10000 -> 30000 | E4: =I3 -> 283774.74 | F4: 3 | G4: =G3+F4 -> 17 | H4: 90000 | I4: 373774.74 | J4: 10.57176548 | K4: 31.71529644 | L4: 315.3052667 | M4: 112 | O4: Pending
A5: 4 | B5: 100 | C5: 300 | D5: 40000 | E5: 373774.74 | F5: 3 | G5: 20 | H5: 120000 | I5: 493774.74 | J5: 10.70163275 | K5: 32.10489826 | L5: 448.6386 | M5: 136 | O5: Pending
A6: 5 | B6: 125 | C6: 375 | D6: 50000 | E6: 493774.74 | F6: 2 | G6: 22 | H6: 100000 | I6: 593774.74 | J6: 10.1260749 | K6: 20.2521498 | L6: 559.7497111 | M6: 160 | O6: Pending
A7: 6 | B7: 150 | C7: 450 | D7: 60000 | E7: 593774.74 | F7: 2 | G7: 24 | H7: 120000 | I7: 713774.74 | J7: 10.10484212 | K7: 20.20968423 | L7: 693.0830444 | M7: 184 | O7: Pending | P7: Total Trading weeks | Q7: =SUM(F2:F53) -> 44
A8: 7 | B8: 175 | C8: 525 | D8: 70000 | E8: 713774.74 | F8: 2 | G8: 26 | H8: 140000 | I8: 853774.74 | J8: 9.807015586 | K8: 19.61403117 | L8: 848.6386 | M8: 208 | O8: Pending | P8: Trading Days | Q8: =Q7*5 -> 220
A9: 9 | B9: 225 | C9: 675 | D9: 90000 | E9: 853774.74 | F9: 1 | G9: 27 | H9: 90000 | I9: 943774.74 | J9: 10.5414222 | K9: 10.5414222 | L9: 948.6386 | M9: 256 | O9: Pending
A10: 10 | B10: 250 | C10: 750 | D10: 100000 | E10: 943774.74 | F10: 1 | G10: 28 | H10: 100000 | I10: 1043774.74 | J10: 10.59574873 | K10: 10.59574873 | L10: 1059.749711 | M10: 280 | O10: Pending | P10: Weekly Points Nifty | Q10: =D2/(75*A2)+1 -> 134.3333333
A11: 11 | B11: 275 | C11: 825 | D11: 110000 | E11: 1043774.74 | F11: 1 | G11: 29 | H11: 110000 | I11: 1153774.74 | J11: 10.53867236 | K11: 10.53867236 | L11: 1181.971933 | M11: 304 | O11: Pending
A12: 12 | B12: 300 | C12: 900 | D12: 120000 | E12: 1153774.74 | F12: 1 | G12: 30 | H12: 120000 | I12: 1273774.74 | J12: 10.40064372 | K12: 10.40064372 | L12: 1315.305267 | M12: 328 | O12: Pending | P12: Daily Points Nifty | Q12: =(Q10/5)+1 -> 27.86666667
A13: 14 | B13: 350 | C13: 1050 | D13: 140000 | E13: 1273774.74 | F13: 1 | G13: 31 | H13: 140000 | I13: 1413774.74 | J13: 10.99095433 | K13: 10.99095433 | L13: 1470.860822 | M13: 376 | O13: Pending
A14: 15 | B14: 375 | C14: 1125 | D14: 150000 | E14: 1413774.74 | F14: 1 | G14: 32 | H14: 150000 | I14: 1563774.74 | J14: 10.60989391 | K14: 10.60989391 | L14: 1637.527489 | M14: 400 | O14: Pending | P14: Weekly Points BNF | Q14: =D2/(25*A2)+3 -> 403
A15: 17 | B15: 425 | C15: 1275 | D15: 170000 | E15: 1563774.74 | F15: 1 | G15: 33 | H15: 170000 | I15: 1733774.74 | J15: 10.87113097 | K15: 10.87113097 | L15: 1826.416378 | M15: 448 | O15: Pending
A16: 19 | B16: 475 | C16: 1425 | D16: 190000 | E16: 1733774.74 | F16: 1 | G16: 34 | H16: 190000 | I16: 1923774.74 | J16: 10.95874773 | K16: 10.95874773 | L16: 2037.527489 | M16: 496 | O16: Pending | P16: Daily Points BNF | Q16: =Q14/5+3 -> 83.6
A17: 21 | B17: 525 | C17: 1575 | D17: 210000 | E17: 1923774.74 | F17: 1 | G17: 35 | H17: 210000 | I17: 2133774.74 | J17: 10.91603895 | K17: 10.91603895 | L17: 2270.860822 | M17: 544 | O17: Pending
A18: 23 | B18: 575 | C18: 1725 | D18: 230000 | E18: 2133774.74 | F18: 1 | G18: 36 | H18: 230000 | I18: 2363774.74 | J18: 10.77901972 | K18: 10.77901972 | L18: 2526.416378 | M18: 592 | O18: Pending | P18: Final Capital | Q18: =E26 -> 4903774.74
A19: 26 | B19: 650 | C19: 1950 | D19: 260000 | E19: 2363774.74 | F19: 1 | G19: 37 | H19: 260000 | I19: 2623774.74 | J19: 10.99935606 | K19: 10.99935606 | L19: 2815.305267 | M19: 664 | O19: Pending
A20: 29 | B20: 725 | C20: 2175 | D20: 290000 | E20: 2623774.74 | F20: 1 | G20: 38 | H20: 290000 | I20: 2913774.74 | J20: 11.05277811 | K20: 11.05277811 | L20: 3137.527489 | M20: 736 | O20: Pending | P20: Final Return | Q20: =L26 -> 5948.6386
A21: 32 | B21: 800 | C21: 2400 | D21: 320000 | E21: 2913774.74 | F21: 1 | G21: 39 | H21: 320000 | I21: 3233774.74 | J21: 10.98231773 | K21: 10.98231773 | L21: 3493.083044 | M21: 808 | O21: Pending
A22: 35 | B22: 875 | C22: 2625 | D22: 350000 | E22: 3233774.74 | F22: 1 | G22: 40 | H22: 350000 | I22: 3583774.74 | J22: 10.8232647 | K22: 10.8232647 | L22: 3881.971933 | M22: 880 | O22: Pending
A23: 39 | B23: 975 | C23: 2925 | D23: 390000 | E23: 3583774.74 | F23: 1 | G23: 41 | H23: 390000 | I23: 3973774.74 | J23: 10.8823804 | K23: 10.8823804 | L23: 4315.305267 | M23: 976 | O23: Pending
A24: 44 | B24: 1100 | C24: 3300 | D24: 440000 | E24: 3973774.74 | F24: 1 | G24: 42 | H24: 440000 | I24: 4413774.74 | J24: 11.07259542 | K24: 11.07259542 | L24: 4804.194156 | M24: 1096 | O24: Pending
A25: 49 | B25: 1225 | C25: 3675 | D25: 490000 | E25: 4413774.74 | F25: 1 | G25: 43 | H25: 490000 | I25: 4903774.74 | J25: 11.10160869 | K25: 11.10160869 | L25: 5348.6386 | M25: 1216 | O25: Pending
A26: 54 | B26: 1350 | C26: 4050 | D26: 540000 | E26: 4903774.74 | F26: 1 | G26: 44 | H26: 540000 | I26: 5443774.74 | J26: 11.01192507 | K26: 11.01192507 | L26: 5948.6386 | M26: 1336 | O26: Pending

Sheet Haircut for stocks pledgin
A4: Approved Securities List for the Month of April 2021
B5: Equity Shares
A6: Sr. No. | B6: Security Name | C6: ISIN | D6: Haircut % | E6: For every Rs 100 worth of stock pledged, you'll receive collateral margin of Rs. | F6: Member wise limit reached
A7: 1 | B7: ADANIPORTS | C7: INE742F01042 | D7: 21 | E7: 79 | F7: No
A8: 2 | B8: ASIANPAINT | C8: INE021A01026 | D8: 16.27 | E8: 83.73 | F8: No
A9: 3 | B9: AXISBANK | C9: INE238A01034 | D9: 29.83 | E9: 70.17 | F9: No
A10: 4 | B10: BAJAJ-AUTO | C10: INE917I01010 | D10: 16.65 | E10: 83.35 | F10: No
A11: 5 | B11: BAJAJFINSV | C11: INE918I01018 | D11: 28.75 | E11: 71.25 | F11: No
A12: 6 | B12: BAJFINANCE | C12: INE296A01024 | D12: 24.63 | E12: 75.37 | F12: No
A13: 7 | B13: BHARTIARTL | C13: INE397D01024 | D13: 18.35 | E13: 81.65 | F13: No
A14: 8 | B14: BPCL | C14: INE029A01011 | D14: 44.02 | E14: 55.98 | F14: No
A15: 9 | B15: BRITANNIA | C15: INE216A01030 | D15: 15.85 | E15: 84.15 | F15: No
A16: 10 | B16: CIPLA | C16: INE059A01026 | D16: 16.82 | E16: 83.18 | F16: No
A17: 11 | B17: COALINDIA | C17: INE522F01014 | D17: 17.34 | E17: 82.66 | F17: No
A18: 12 | B18: DIVISLAB | C18: INE361B01024 | D18: 16.36 | E18: 83.64 | F18: No
A19: 13 | B19: DRREDDY | C19: INE089A01023 | D19: 15.64 | E19: 84.36 | F19: No
A20: 14 | B20: EICHERMOT | C20: INE066A01021 | D20: 18.91 | E20: 81.09 | F20: No
A21: 15 | B21: GRASIM | C21: INE047A01021 | D21: 25.13 | E21: 74.87 | F21: No
A22: 16 | B22: HCLTECH | C22: INE860A01027 | D22: 17.44 | E22: 82.56 | F22: No
A23: 17 | B23: HDFC | C23: INE001A01036 | D23: 25.87 | E23: 74.13 | F23: No
A24: 18 | B24: HDFCBANK | C24: INE040A01034 | D24: 16.54 | E24: 83.46 | F24: No
A25: 19 | B25: HDFCLIFE | C25: INE795G01014 | D25: 22.35 | E25: 77.65 | F25: No
A26: 20 | B26: HEROMOTOCO | C26: INE158A01026 | D26: 21 | E26: 79 | F26: No
A27: 21 | B27: HINDALCO | C27: INE038A01020 | D27: 27.26 | E27: 72.74 | F27: No
A28: 22 | B28: HINDUNILVR | C28: INE030A01027 | D28: 14.42 | E28: 85.58 | F28: No
A29: 23 | B29: ICICIBANK | C29: INE090A01021 | D29: 22.04 | E29: 77.96 | F29: No
A30: 24 | B30: INDUSINDBK | C30: INE095A01012 | D30: 51.79 | E30: 48.21 | F30: No
A31: 25 | B31: INFY | C31: INE009A01021 | D31: 16.66 | E31: 83.34 | F31: No
A32: 26 | B32: IOC | C32: INE242A01010 | D32: 16.66 | E32: 83.34 | F32: No
A33: 27 | B33: ITC | C33: INE154A01025 | D33: 15.96 | E33: 84.04 | F33: No
A34: 28 | B34: JSWSTEEL | C34: INE019A01038 | D34: 26.27 | E34: 73.73 | F34: No
A35: 29 | B35: KOTAKBANK | C35: INE237A01028 | D35: 28.41 | E35: 71.59 | F35: No
A36: 30 | B36: LT | C36: INE018A01030 | D36: 17.09 | E36: 82.91 | F36: No
A37: 31 | B37: M&M | C37: INE101A01026 | D37: 30.19 | E37: 69.81 | F37: No
A38: 32 | B38: MARUTI | C38: INE585B01010 | D38: 18.32 | E38: 81.68 | F38: No
A39: 33 | B39: NESTLEIND | C39: INE239A01016 | D39: 14.89 | E39: 85.11 | F39: No
A40: 34 | B40: NTPC | C40: INE733E01010 | D40: 16.26 | E40: 83.74 | F40: No
A41: 35 | B41: ONGC | C41: INE213A01029 | D41: 50.96 | E41: 49.04 | F41: No
A42: 36 | B42: POWERGRID | C42: INE752E01010 | D42: 16.36 | E42: 83.64 | F42: No
A43: 37 | B43: RELIANCE | C43: INE002A01018 | D43: 18.3 | E43: 81.7 | F43: No
A44: 38 | B44: SBILIFE | C44: INE123W01016 | D44: 17.68 | E44: 82.32 | F44: No
A45: 39 | B45: SBIN | C45: INE062A01020 | D45: 21.52 | E45: 78.48 | F45: No
A46: 40 | B46: SHREECEM | C46: INE070A01015 | D46: 18.42 | E46: 81.58 | F46: No
A47: 41 | B47: SUNPHARMA | C47: INE044A01036 | D47: 17.07 | E47: 82.93 | F47: No
A48: 42 | B48: TATACONSUM | C48: INE192A01025 | D48: 19.13 | E48: 80.87 | F48: No
A49: 43 | B49: TATAMOTORS | C49: INE155A01022 | D49: 27.75 | E49: 72.25 | F49: No
A50: 44 | B50: TATASTEEL | C50: INE081A01012 | D50: 22.29 | E50: 77.71 | F50: No
A51: 45 | B51: TCS | C51: INE467B01029 | D51: 15.46 | E51: 84.54 | F51: No
A52: 46 | B52: TECHM | C52: INE669C01036 | D52: 17.8 | E52: 82.2 | F52: No
A53: 47 | B53: TITAN | C53: INE280A01028 | D53: 20.55 | E53: 79.45 | F53: No
A54: 48 | B54: ULTRACEMCO | C54: INE481G01011 | D54: 17.47 | E54: 82.53 | F54: No
A55: 49 | B55: UPL | C55: INE628A01036 | D55: 23.18 | E55: 76.82 | F55: No
A56: 50 | B56: WIPRO | C56: INE075A01022 | D56: 17.9 | E56: 82.1 | F56: No
A57: 51 | B57: ABBOTINDIA | C57: INE358A01014 | D57: 14.81 | E57: 85.19 | F57: No
A58: 52 | B58: ACC | C58: INE012A01025 | D58: 16.33 | E58: 83.67 | F58: No
A59: 53 | B59: ADANIENT | C59: INE423A01024 | D59: 29.71 | E59: 70.29 | F59: No
A60: 54 | B60: ALKEM | C60: INE540L01014 | D60: 15.31 | E60: 84.69 | F60: No
A61: 55 | B61: AMBUJACEM | C61: INE079A01024 | D61: 18.09 | E61: 81.91 | F61: No
A62: 56 | B62: APOLLOHOSP | C62: INE437A01024 | D62: 23.42 | E62: 76.58 | F62: No
A63: 57 | B63: AUROPHARMA | C63: INE406A01037 | D63: 33.32 | E63: 66.68 | F63: No
A64: 58 | B64: BAJAJHLDNG | C64: INE118A01012 | D64: 19.02 | E64: 80.98 | F64: No
A65: 59 | B65: BANDHANBNK | C65: INE545U01014 | D65: 44.98 | E65: 55.02 | F65: No
A66: 60 | B66: BERGEPAINT | C66: INE463A01038 | D66: 16.2 | E66: 83.8 | F66: No
A67: 61 | B67: BIOCON | C67: INE376G01013 | D67: 22.5 | E67: 77.5 | F67: No
A68: 62 | B68: BOSCHLTD | C68: INE323A01026 | D68: 22.38 | E68: 77.62 | F68: No
A69: 63 | B69: CADILAHC | C69: INE010B01027 | D69: 17.75 | E69: 82.25 | F69: No
A70: 64 | B70: COLPAL | C70: INE259A01022 | D70: 14.5 | E70: 85.5 | F70: No
A71: 65 | B71: DABUR | C71: INE016A01026 | D71: 12.56 | E71: 87.44 | F71: No
A72: 66 | B72: DLF | C72: INE271C01023 | D72: 25.06 | E72: 74.94 | F72: No
A73: 67 | B73: DMART | C73: INE192R01011 | D73: 18.23 | E73: 81.77 | F73: No
A74: 68 | B74: GAIL | C74: INE129A01019 | D74: 19.93 | E74: 80.07 | F74: No
A75: 69 | B75: GODREJCP | C75: INE102D01028 | D75: 15.72 | E75: 84.28 | F75: No
A76: 70 | B76: HAVELLS | C76: INE176B01034 | D76: 19 | E76: 81 | F76: No
A77: 71 | B77: HDFCAMC | C77: INE127D01025 | D77: 18.24 | E77: 81.76 | F77: No
A78: 72 | B78: HINDPETRO | C78: INE094A01015 | D78: 34.7 | E78: 65.3 | F78: No
A79: 73 | B79: ICICIGI | C79: INE765G01017 | D79: 18.85 | E79: 81.15 | F79: No
A80: 74 | B80: ICICIPRULI | C80: INE726G01019 | D80: 21.78 | E80: 78.22 | F80: No
A81: 75 | B81: IGL | C81: INE203G01027 | D81: 18.95 | E81: 81.05 | F81: No
A82: 76 | B82: INDIGO | C82: INE646L01027 | D82: 28.12 | E82: 71.88 | F82: No
A83: 77 | B83: INDUSTOWER | C83: INE121J01017 | D83: 26.95 | E83: 73.05 | F83: No
A84: 78 | B84: JUBLFOOD | C84: INE797F01012 | D84: 41.94 | E84: 58.06 | F84: No
A85: 79 | B85: LTI | C85: INE214T01019 | D85: 20.38 | E85: 79.62 | F85: No
A86: 80 | B86: LUPIN | C86: INE326A01037 | D86: 17.61 | E86: 82.39 | F86: No
A87: 81 | B87: MARICO | C87: INE196A01026 | D87: 12.51 | E87: 87.49 | F87: No
A88: 82 | B88: MCDOWELL-N | C88: INE854D01024 | D88: 16.83 | E88: 83.17 | F88: No
A89: 83 | B89: MOTHERSUMI | C89: INE775A01035 | D89: 34.6 | E89: 65.4 | F89: No
A90: 84 | B90: MRF | C90: INE883A01011 | D90: 16.58 | E90: 83.42 | F90: No
A91: 85 | B91: MUTHOOTFIN | C91: INE414G01012 | D91: 27.45 | E91: 72.55 | F91: No
A92: 86 | B92: NAUKRI | C92: INE663F01024 | D92: 23.25 | E92: 76.75 | F92: No
A93: 87 | B93: NMDC | C93: INE584A01023 | D93: 31.95 | E93: 68.05 | F93: No
A94: 88 | B94: PEL | C94: INE140A01024 | D94: 49.45 | E94: 50.55 | F94: No
A95: 89 | B95: PETRONET | C95: INE347G01014 | D95: 16.7 | E95: 83.3 | F95: No
A96: 90 | B96: PGHH | C96: INE179A01014 | D96: 13.42 | E96: 86.58 | F96: No
A97: 91 | B97: PIDILITIND | C97: INE318A01026 | D97: 15.42 | E97: 84.58 | F97: No
A98: 92 | B98: PNB | C98: INE160A01022 | D98: 23.33 | E98: 76.67 | F98: No
A99: 93 | B99: SBICARD | C99: INE018E01016 | D99: 17.9 | E99: 82.1 | F99: No
A100: 94 | B100: SIEMENS | C100: INE003A01024 | D100: 16.93 | E100: 83.07 | F100: No
A101: 95 | B101: TORNTPHARM | C101: INE685A01028 | D101: 16.95 | E101: 83.05 | F101: No
A102: 96 | B102: UBL | C102: INE686F01025 | D102: 17.14 | E102: 82.86 | F102: No
A103: 97 | B103: VEDL | C103: INE205A01025 | D103: 69.99 | E103: 30.01 | F103: No
A104: 98 | B104: 20MICRONS | C104: INE144J01027 | D104: 22.61 | E104: 77.39 | F104: No
A105: 99 | B105: 3MINDIA | C105: INE470A01017 | D105: 18.36 | E105: 81.64 | F105: No
A106: 100 | B106: 5PAISA | C106: INE618L01018 | D106: 29.84 | E106: 70.16 | F106: No
A107: 101 | B107: AARTIDRUGS | C107: INE767A01016 | D107: 25.67 | E107: 74.33 | F107: No
A108: 102 | B108: AARTIIND | C108: INE769A01020 | D108: 19.44 | E108: 80.56 | F108: No
A109: 103 | B109: AAVAS | C109: INE216P01012 | D109: 21.3 | E109: 78.7 | F109: No
A110: 104 | B110: ABB | C110: INE117A01022 | D110: 16.98 | E110: 83.02 | F110: No
A111: 105 | B111: ABCAPITAL | C111: INE674K01013 | D111: 25.18 | E111: 74.82 | F111: No
A112: 106 | B112: ABFRL | C112: INE647O01011 | D112: 20.66 | E112: 79.34 | F112: No
A113: 107 | B113: ACCELYA | C113: INE793A01012 | D113: 14.54 | E113: 85.46 | F113: No
A114: 108 | B114: ADANIPOWER | C114: INE814H01011 | D114: 28.29 | E114: 71.71 | F114: No
A115: 109 | B115: ADFFOODS | C115: INE982B01019 | D115: 23.29 | E115: 76.71 | F115: No
A116: 110 | B116: ADORWELD | C116: INE045A01017 | D116: 22.48 | E116: 77.52 | F116: No
A117: 111 | B117: ADVENZYMES | C117: INE837H01020 | D117: 24.22 | E117: 75.78 | F117: No
A118: 112 | B118: AEGISCHEM | C118: INE208C01025 | D118: 23.05 | E118: 76.95 | F118: No
A119: 113 | B119: AFFLE | C119: INE00WC01019 | D119: 23.4 | E119: 76.6 | F119: No
A120: 114 | B120: AHLUCONT | C120: INE758C01029 | D120: 23.07 | E120: 76.93 | F120: No
A121: 115 | B121: AIAENG | C121: INE212H01026 | D121: 17.84 | E121: 82.16 | F121: No
A122: 116 | B122: AJANTPHARM | C122: INE031B01049 | D122: 17.39 | E122: 82.61 | F122: No
A123: 117 | B123: AJMERA | C123: INE298G01027 | D123: 26.53 | E123: 73.47 | F123: No
A124: 118 | B124: AKSHARCHEM | C124: INE542B01011 | D124: 24.56 | E124: 75.44 | F124: No
A125: 119 | B125: AKZOINDIA | C125: INE133A01011 | D125: 16.32 | E125: 83.68 | F125: No
A126: 120 | B126: ALANKIT | C126: INE914E01040 | D126: 27.6 | E126: 72.4 | F126: No
A127: 121 | B127: ALBERTDAVD | C127: INE155C01010 | D127: 21.96 | E127: 78.04 | F127: No
A128: 122 | B128: ALEMBICLTD | C128: INE426A01027 | D128: 25.21 | E128: 74.79 | F128: No
A129: 123 | B129: ALICON | C129: INE062D01024 | D129: 26.43 | E129: 73.57 | F129: No
A130: 124 | B130: ALKYLAMINE | C130: INE150B01021 | D130: 26.19 | E130: 73.81 | F130: No
A131: 125 | B131: ALLCARGO | C131: INE418H01029 | D131: 19.63 | E131: 80.37 | F131: No
A132: 126 | B132: ALLSEC | C132: INE835G01018 | D132: 26.48 | E132: 73.52 | F132: No
A133: 127 | B133: ALPHAGEO | C133: INE137C01018 | D133: 27.88 | E133: 72.12 | F133: No
A134: 128 | B134: AMARAJABAT | C134: INE885A01032 | D134: 17.77 | E134: 82.23 | F134: No
A135: 129 | B135: AMBER | C135: INE371P01015 | D135: 50 | E135: 50 | F135: No
A136: 130 | B136: AMBIKCO | C136: INE540G01014 | D136: 19.01 | E136: 80.99 | F136: No
A137: 131 | B137: AMRUTANJAN | C137: INE098F01031 | D137: 22.42 | E137: 77.58 | F137: No
A138: 132 | B138: ANDHRAPAP | C138: INE435A01028 | D138: 22.05 | E138: 77.95 | F138: No
A139: 133 | B139: ANDHRSUGAR | C139: INE715B01013 | D139: 23.22 | E139: 76.78 | F139: No
A140: 134 | B140: ANGELBRKG | C140: INE732I01013 | D140: 16.68 | E140: 83.32 | F140: No
A141: 135 | B141: ANUP | C141: INE294Z01018 | D141: 25.03 | E141: 74.97 | F141: No
A142: 136 | B142: APARINDS | C142: INE372A01015 | D142: 18.81 | E142: 81.19 | F142: No
A143: 137 | B143: APCL | C143: INE071F01012 | D143: 23.44 | E143: 76.56 | F143: No
A144: 138 | B144: APCOTEXIND | C144: INE116A01032 | D144: 24.99 | E144: 75.01 | F144: No
A145: 139 | B145: APEX | C145: INE346W01013 | D145: 25.03 | E145: 74.97 | F145: No
A146: 140 | B146: APLLTD | C146: INE901L01018 | D146: 20.21 | E146: 79.79 | F146: No
A147: 141 | B147: APOLLO | C147: INE713T01010 | D147: 28.84 | E147: 71.16 | F147: No
A148: 142 | B148: APOLLOTYRE | C148: INE438A01022 | D148: 23.62 | E148: 76.38 | F148: No
A149: 143 | B149: APTECHT | C149: INE266F01018 | D149: 28.61 | E149: 71.39 | F149: No
A150: 144 | B150: ARIES | C150: INE298I01015 | D150: 26.14 | E150: 73.86 | F150: No
A151: 145 | B151: ARMANFIN | C151: INE109C01017 | D151: 24.28 | E151: 75.72 | F151: No
A152: 146 | B152: ARVIND | C152: INE034A01011 | D152: 27.86 | E152: 72.14 | F152: No
A153: 147 | B153: ARVINDFASN | C153: INE955V01021 | D153: 22.93 | E153: 77.07 | F153: No
A154: 148 | B154: ARVSMART | C154: INE034S01021 | D154: 24.25 | E154: 75.75 | F154: No
A155: 149 | B155: ASAHIINDIA | C155: INE439A01020 | D155: 21.21 | E155: 78.79 | F155: No
A156: 150 | B156: ASAHISONG | C156: INE228I01012 | D156: 27.96 | E156: 72.04 | F156: No
A157: 151 | B157: ASALCBR | C157: INE073G01016 | D157: 19 | E157: 81 | F157: No
A158: 152 | B158: ASHIANA | C158: INE365D01021 | D158: 100 | E158: 0 | F158: No
A159: 153 | B159: ASHOKA | C159: INE442H01029 | D159: 25.87 | E159: 74.13 | F159: No
A160: 154 | B160: ASHOKLEY | C160: INE208A01029 | D160: 32.25 | E160: 67.75 | F160: No
A161: 155 | B161: ASIANTILES | C161: INE022I01019 | D161: 27.57 | E161: 72.43 | F161: No
A162: 156 | B162: ASTEC | C162: INE563J01010 | D162: 25.13 | E162: 74.87 | F162: No
A163: 157 | B163: ASTERDM | C163: INE914M01019 | D163: 20.87 | E163: 79.13 | F163: No
A164: 158 | B164: ASTRAL | C164: INE006I01046 | D164: 24.27 | E164: 75.73 | F164: No
A165: 159 | B165: ASTRAMICRO | C165: INE386C01029 | D165: 23.73 | E165: 76.27 | F165: No
A166: 160 | B166: ASTRAZEN | C166: INE203A01020 | D166: 22.32 | E166: 77.68 | F166: No
A167: 161 | B167: ASTRON | C167: INE646X01014 | D167: 24.91 | E167: 75.09 | F167: No
A168: 162 | B168: ATFL | C168: INE209A01019 | D168: 20.29 | E168: 79.71 | F168: No
A169: 163 | B169: ATUL | C169: INE100A01010 | D169: 17.16 | E169: 82.84 | F169: No
A170: 164 | B170: ATULAUTO | C170: INE951D01028 | D170: 19.36 | E170: 80.64 | F170: No
A171: 165 | B171: AUBANK | C171: INE949L01017 | D171: 24.09 | E171: 75.91 | F171: No
A172: 166 | B172: AUTOAXLES | C172: INE449A01011 | D172: 23.84 | E172: 76.16 | F172: No
A173: 167 | B173: AVADHSUGAR | C173: INE349W01017 | D173: 27.47 | E173: 72.53 | F173: No
A174: 168 | B174: AVANTIFEED | C174: INE871C01038 | D174: 22.16 | E174: 77.84 | F174: No
A175: 169 | B175: AVTNPL | C175: INE488D01021 | D175: 24.11 | E175: 75.89 | F175: No
A176: 170 | B176: AWHCL | C176: INE01BK01022 | D176: 12.5 | E176: 87.5 | F176: No
A177: 171 | B177: BAJAJCON | C177: INE933K01021 | D177: 22.98 | E177: 77.02 | F177: No
A178: 172 | B178: BAJAJHIND | C178: INE306A01021 | D178: 28.29 | E178: 71.71 | F178: No
A179: 173 | B179: BALAJITELE | C179: INE794B01026 | D179: 25.03 | E179: 74.97 | F179: No
A180: 174 | B180: BALAMINES | C180: INE050E01027 | D180: 30.65 | E180: 69.35 | F180: No
A181: 175 | B181: BALKRISIND | C181: INE787D01026 | D181: 22.74 | E181: 77.26 | F181: No
A182: 176 | B182: BALMLAWRIE | C182: INE164A01016 | D182: 20.29 | E182: 79.71 | F182: No
A183: 177 | B183: BALRAMCHIN | C183: INE119A01028 | D183: 25.54 | E183: 74.46 | F183: No
A184: 178 | B184: BANARISUG | C184: INE459A01010 | D184: 18.47 | E184: 81.53 | F184: No
A185: 179 | B185: BANCOINDIA | C185: INE213C01025 | D185: 22.81 | E185: 77.19 | F185: No
A186: 180 | B186: BANKBARODA | C186: INE028A01039 | D186: 42.69 | E186: 57.31 | F186: No
A187: 181 | B187: BANKINDIA | C187: INE084A01016 | D187: 27.88 | E187: 72.12 | F187: No
A188: 182 | B188: BASF | C188: INE373A01013 | D188: 22.39 | E188: 77.61 | F188: No
A189: 183 | B189: BATAINDIA | C189: INE176A01028 | D189: 17.03 | E189: 82.97 | F189: No
A190: 184 | B190: BAYERCROP | C190: INE462A01022 | D190: 17.53 | E190: 82.47 | F190: No
A191: 185 | B191: BBL | C191: INE464A01028 | D191: 19.64 | E191: 80.36 | F191: No
A192: 186 | B192: BBTC | C192: INE050A01025 | D192: 21.4 | E192: 78.6 | F192: No
A193: 187 | B193: BCLIND | C193: INE412G01016 | D193: 16.29 | E193: 83.71 | F193: No
A194: 188 | B194: BDL | C194: INE171Z01018 | D194: 22.45 | E194: 77.55 | F194: No
A195: 189 | B195: BECTORFOOD | C195: INE495P01012 | D195: 14.73 | E195: 85.27 | F195: No
A196: 190 | B196: BEL | C196: INE263A01024 | D196: 21.52 | E196: 78.48 | F196: No
A197: 191 | B197: BEML | C197: INE258A01016 | D197: 25.74 | E197: 74.26 | F197: No
A198: 192 | B198: BEPL | C198: INE922A01025 | D198: 29.93 | E198: 70.07 | F198: No
A199: 193 | B199: BFINVEST | C199: INE878K01010 | D199: 25.7 | E199: 74.3 | F199: No
A200: 194 | B200: BFUTILITIE | C200: INE243D01012 | D200: 25.31 | E200: 74.69 | F200: No
A201: 195 | B201: BGRENERGY | C201: INE661I01014 | D201: 31.11 | E201: 68.89 | F201: No
A202: 196 | B202: BHAGERIA | C202: INE354C01027 | D202: 22.85 | E202: 77.15 | F202: No
A203: 197 | B203: BHARATFORG | C203: INE465A01025 | D203: 22.53 | E203: 77.47 | F203: No
... 1869 more rows
